Workbook

Sheet VILLES
C3: VILLE | D3: KM | E3: 0.1 | F3: KM A/R | G3: KM A/R +10% | H3: TEMPS | I3: 0.2 | J3: TEMPS A/R | K3: TEMPS A/R +20%
C4: VILLE 1 | D4: 20 | E4: 22 | F4: 40 | G4: 44 | H4: 00:37:00 | I4: 00:44:24 | J4: 01:14:00 | K4: 01:28:48
C5: VILLE 2 | D5: 36.5 | E5: 40.15 | F5: 73 | G5: 80.3 | H5: 00:57:00 | I5: 01:08:24 | J5: 01:54:00 | K5: 02:16:48
C6: VILLE 3 | D6: 25.2 | E6: 27.72 | F6: 50.4 | G6: 55.44 | H6: 00:44:00 | I6: 00:52:48 | J6: 01:28:00 | K6: 01:45:36
C7: VILLE 4 | D7: 25.3 | E7: 27.83 | F7: 50.6 | G7: 55.66 | H7: 00:42:00 | I7: 00:50:24 | J7: 01:24:00 | K7: 01:40:48
C8: VILLE 5 | D8: 25 | E8: 27.5 | F8: 50 | G8: 55 | H8: 00:40:00 | I8: 00:48:00 | J8: 01:20:00 | K8: 01:36:00
C9: VILLE 6 | D9: 15.4 | E9: 16.94 | F9: 30.8 | G9: 33.88 | H9: 00:30:00 | I9: 00:36:00 | J9: 01:00:00 | K9: 01:12:00
C10: VILLE 7 | D10: 38.2 | E10: 42.02 | F10: 76.4 | G10: 84.04 | H10: 00:59:00 | I10: 01:10:48 | J10: 01:58:00 | K10: 02:21:36
C11: VILLE 8 | D11: 31.7 | E11: 34.87 | F11: 63.4 | G11: 69.74 | H11: 00:50:00 | I11: 01:00:00 | J11: 01:40:00 | K11: 02:00:00
C12: VILLE 9 | D12: 101.4 | E12: 111.54 | F12: 202.8 | G12: 223.08 | H12: 02:01:00 | I12: 02:25:12 | J12: 04:02:00 | K12: 04:50:24
C13: VILLE 10 | D13: 66.3 | E13: 72.93 | F13: 132.6 | G13: 145.86 | H13: 01:19:00 | I13: 01:34:48 | J13: 02:38:00 | K13: 03:09:36
C14: VILLE 11 | D14: 25.2 | E14: 27.72 | F14: 50.4 | G14: 55.44 | H14: 00:44:00 | I14: 00:52:48 | J14: 01:28:00 | K14: 01:45:36
C15: VILLE 12 | D15: 28.4 | E15: 31.24 | F15: 56.8 | G15: 62.48 | H15: 00:49:00 | I15: 00:58:48 | J15: 01:38:00 | K15: 01:57:36
C16: VILLE 13 | D16: 16 | E16: 17.6 | F16: 32 | G16: 35.2 | H16: 00:08:00 | I16: 00:09:36 | J16: 00:16:00 | K16: 00:19:12
C17: VILLE 14 | D17: 43.8 | E17: 48.18 | F17: 87.6 | G17: 96.36 | H17: 01:00:00 | I17: 01:12:00 | J17: 02:00:00 | K17: 02:24:00
C18: VILLE 15 | D18: 12 | E18: 13.2 | F18: 24 | G18: 26.4 | H18: 00:22:00 | I18: 00:26:24 | J18: 00:44:00 | K18: 00:52:48
C19: VILLE 16 | D19: 40.3 | E19: 44.33 | F19: 80.6 | G19: 88.66 | H19: 01:08:00 | I19: 01:21:36 | J19: 02:16:00 | K19: 02:43:12
C20: VILLE 17 | D20: 29.1 | E20: 32.01 | F20: 58.2 | G20: 64.02 | H20: 00:51:00 | I20: 01:01:12 | J20: 01:42:00 | K20: 02:02:24
C21: VILLE 18 | D21: 24.7 | E21: 27.17 | F21: 49.4 | G21: 54.34 | H21: 00:40:00 | I21: 00:48:00 | J21: 01:20:00 | K21: 01:36:00
C22: VILLE 19 | D22: 39.7 | E22: 43.67 | F22: 79.4 | G22: 87.34 | H22: 00:57:00 | I22: 01:08:24 | J22: 01:54:00 | K22: 02:16:48
C23: VILLE 20 | D23: 18 | E23: 19.8 | F23: 36 | G23: 39.6 | H23: 00:30:00 | I23: 00:36:00 | J23: 01:00:00 | K23: 01:12:00
C24: VILLE 21 | D24: 32.6 | E24: 35.86 | F24: 65.2 | G24: 71.72 | H24: 00:58:00 | I24: 01:09:36 | J24: 01:56:00 | K24: 02:19:12
C25: VILLE 22 | D25: 16.3 | E25: 17.93 | F25: 32.6 | G25: 35.86 | H25: 00:31:00 | I25: 00:37:12 | J25: 01:02:00 | K25: 01:14:24
C26: VILLE 23 | D26: 15 | E26: 16.5 | F26: 30 | G26: 33 | H26: 00:25:00 | I26: 00:30:00 | J26: 00:50:00 | K26: 01:00:00
C27: VILLE 24 | D27: 17.9 | E27: 19.69 | F27: 35.8 | G27: 39.38 | H27: 00:34:00 | I27: 00:40:48 | J27: 01:08:00 | K27: 01:21:36
C28: VILLE 25 | D28: 31 | E28: 34.1 | F28: 62 | G28: 68.2 | H28: 00:56:00 | I28: 01:07:12 | J28: 01:52:00 | K28: 02:14:24
C29: VILLE 26 | D29: 49.9 | E29: 54.89 | F29: 99.8 | G29: 109.78 | H29: 01:14:00 | I29: 01:28:48 | J29: 02:28:00 | K29: 02:57:36
C30: VILLE 27 | D30: 18.4 | E30: 20.24 | F30: 36.8 | G30: 40.48 | H30: 00:35:00 | I30: 00:42:00 | J30: 01:10:00 | K30: 01:24:00
C31: VILLE 28 | D31: 92.5 | E31: 101.75 | F31: 185 | G31: 203.5 | H31: 01:45:00 | I31: 02:06:00 | J31: 03:30:00 | K31: 04:12:00
C32: VILLE 29 | D32: 28.9 | E32: 31.79 | F32: 57.8 | G32: 63.58 | H32: 00:51:00 | I32: 01:01:12 | J32: 01:42:00 | K32: 02:02:24
C33: VILLE 30 | D33: 64.6 | E33: 71.06 | F33: 129.2 | G33: 142.12 | H33: 01:16:00 | I33: 01:31:12 | J33: 02:32:00 | K33: 03:02:24
C34: VILLE 31 | D34: 58.7 | E34: 64.57 | F34: 117.4 | G34: 129.14 | H34: 01:39:00 | I34: 01:58:48 | J34: 03:18:00 | K34: 03:57:36
C35: VILLE 32 | D35: 75 | E35: 82.5 | F35: 150 | G35: 165 | H35: 01:30:00 | I35: 01:48:00 | J35: 03:00:00 | K35: 03:36:00
C36: VILLE 33 | D36: 70 | E36: 77 | F36: 140 | G36: 154 | H36: 01:30:00 | I36: 01:48:00 | J36: 03:00:00 | K36: 03:36:00
C37: VILLE 34 | D37: 12 | E37: 13.2 | F37: 24 | G37: 26.4 | H37: 00:16:00 | I37: 00:19:12 | J37: 00:32:00 | K37: 00:38:24
C38: VILLE 35 | D38: 6 | E38: 6.6 | F38: 12 | G38: 13.2 | H38: 00:10:00 | I38: 00:12:00 | J38: 00:20:00 | K38: 00:24:00
C39: VILLE 36 | D39: 37.3 | E39: 41.03 | F39: 74.6 | G39: 82.06 | H39: 01:02:00 | I39: 01:14:24 | J39: 02:04:00 | K39: 02:28:48
C40: VILLE 37 | D40: 35.5 | E40: 39.05 | F40: 71 | G40: 78.1 | H40: 00:55:00 | I40: 01:06:00 | J40: 01:50:00 | K40: 02:12:00
C41: VILLE 38 | D41: 52.5 | E41: 57.75 | F41: 105 | G41: 115.5 | H41: 01:06:00 | I41: 01:19:12 | J41: 02:12:00 | K41: 02:38:24
C42: VILLE 39 | D42: 34 | E42: 37.4 | F42: 68 | G42: 74.8 | H42: 01:00:00 | I42: 01:12:00 | J42: 02:00:00 | K42: 02:24:00
C43: VILLE 40 | D43: 29.3 | E43: 32.23 | F43: 58.6 | G43: 64.46 | H43: 00:46:00 | I43: 00:55:12 | J43: 01:32:00 | K43: 01:50:24
C44: VILLE 41 | D44: 34.2 | E44: 37.62 | F44: 68.4 | G44: 75.24 | H44: 00:53:00 | I44: 01:03:36 | J44: 01:46:00 | K44: 02:07:12
C45: VILLE 42 | D45: 69.4 | E45: 76.34 | F45: 138.8 | G45: 152.68 | H45: 01:19:00 | I45: 01:34:48 | J45: 02:38:00 | K45: 03:09:36
C46: VILLE 43 | D46: 21.5 | E46: 23.65 | F46: 43 | G46: 47.3 | H46: 00:36:00 | I46: 00:43:12 | J46: 01:12:00 | K46: 01:26:24
C47: VILLE 44 | D47: 51.8 | E47: 56.98 | F47: 103.6 | G47: 113.96 | H47: 01:11:00 | I47: 01:25:12 | J47: 02:22:00 | K47: 02:50:24
C48: VILLE 45 | D48: 86.5 | E48: 95.15 | F48: 173 | G48: 190.3 | H48: 01:38:00 | I48: 01:57:36 | J48: 03:16:00 | K48: 03:55:12
C49: VILLE 46 | D49: 75.1 | E49: 82.61 | F49: 150.2 | G49: 165.22 | H49: 01:33:00 | I49: 01:51:36 | J49: 03:06:00 | K49: 03:43:12
C50: VILLE 47 | D50: 8 | E50: 8.8 | F50: 16 | G50: 17.6 | H50: 00:13:00 | I50: 00:15:36 | J50: 00:26:00 | K50: 00:31:12
C51: VILLE 48 | D51: 20.4 | E51: 22.44 | F51: 40.8 | G51: 44.88 | H51: 00:40:00 | I51: 00:48:00 | J51: 01:20:00 | K51: 01:36:00
C52: VILLE 49 | D52: 67 | E52: 73.7 | F52: 134 | G52: 147.4 | H52: 01:17:00 | I52: 01:32:24 | J52: 02:34:00 | K52: 03:04:48
C53: VILLE 50 | D53: 34 | E53: 37.4 | F53: 68 | G53: 74.8 | H53: 00:53:00 | I53: 01:03:36 | J53: 01:46:00 | K53: 02:07:12
C54: VILLE 51 | D54: 41 | E54: 45.1 | F54: 82 | G54: 90.2 | H54: 00:54:00 | I54: 01:04:48 | J54: 01:48:00 | K54: 02:09:36
C55: VILLE 52 | D55: 25.6 | E55: 28.16 | F55: 51.2 | G55: 56.32 | H55: 00:44:00 | I55: 00:52:48 | J55: 01:28:00 | K55: 01:45:36
C56: VILLE 53 | D56: 30.5 | E56: 33.55 | F56: 61 | G56: 67.1 | H56: 00:53:00 | I56: 01:03:36 | J56: 01:46:00 | K56: 02:07:12
C57: VILLE 54 | D57: 5.3 | E57: 5.83 | F57: 10.6 | G57: 11.66 | H57: 00:12:00 | I57: 00:14:24 | J57: 00:24:00 | K57: 00:28:48
C58: VILLE 55 | D58: 98 | E58: 107.8 | F58: 196 | G58: 215.6 | H58: 02:06:00 | I58: 02:31:12 | J58: 04:12:00 | K58: 05:02:24
C59: VILLE 56 | D59: 54 | E59: 59.4 | F59: 108 | G59: 118.8 | H59: 01:02:00 | I59: 01:14:24 | J59: 02:04:00 | K59: 02:28:48
C60: VILLE 57 | D60: 19.3 | E60: 21.23 | F60: 38.6 | G60: 42.46 | H60: 00:38:00 | I60: 00:45:36 | J60: 01:16:00 | K60: 01:31:12
C61: VILLE 58 | D61: 33.6 | E61: 36.96 | F61: 67.2 | G61: 73.92 | H61: 01:00:00 | I61: 01:12:00 | J61: 02:00:00 | K61: 02:24:00
C62: VILLE 59 | D62: 30 | E62: 33 | F62: 60 | G62: 66 | H62: 00:45:00 | I62: 00:54:00 | J62: 01:30:00 | K62: 01:48:00
C63: VILLE 60 | D63: 9.7 | E63: 10.67 | F63: 19.4 | G63: 21.34 | H63: 00:20:00 | I63: 00:24:00 | J63: 00:40:00 | K63: 00:48:00
C64: VILLE 61 | D64: 82 | E64: 90.2 | F64: 164 | G64: 180.4 | H64: 01:30:00 | I64: 01:48:00 | J64: 03:00:00 | K64: 03:36:00
C65: VILLE 62 | D65: 30 | E65: 33 | F65: 60 | G65: 66 | H65: 00:47:00 | I65: 00:56:24 | J65: 01:34:00 | K65: 01:52:48
C66: VILLE 63 | D66: 60.8 | E66: 66.88 | F66: 121.6 | G66: 133.76 | H66: 01:16:00 | I66: 01:31:12 | J66: 02:32:00 | K66: 03:02:24
C67: VILLE 64 | D67: 31.1 | E67: 34.21 | F67: 62.2 | G67: 68.42 | H67: 00:57:00 | I67: 01:08:24 | J67: 01:54:00 | K67: 02:16:48
C68: VILLE 65 | D68: 34.4 | E68: 37.84 | F68: 68.8 | G68: 75.68 | H68: 01:02:00 | I68: 01:14:24 | J68: 02:04:00 | K68: 02:28:48
C69: VILLE 66 | D69: 21 | E69: 23.1 | F69: 42 | G69: 46.2 | H69: 00:34:00 | I69: 00:40:48 | J69: 01:08:00 | K69: 01:21:36
C70: VILLE 67 | D70: 73 | E70: 80.3 | F70: 146 | G70: 160.6 | H70: 01:28:00 | I70: 01:45:36 | J70: 02:56:00 | K70: 03:31:12
C71: VILLE 68 | D71: 51.8 | E71: 56.98 | F71: 103.6 | G71: 113.96 | H71: 01:25:00 | I71: 01:42:00 | J71: 02:50:00 | K71: 03:24:00
C72: VILLE 69 | D72: 64 | E72: 70.4 | F72: 128 | G72: 140.8 | H72: 01:33:00 | I72: 01:51:36 | J72: 03:06:00 | K72: 03:43:12
C73: VILLE 70 | D73: 36 | E73: 39.6 | F73: 72 | G73: 79.2 | H73: 01:00:00 | I73: 01:12:00 | J73: 02:00:00 | K73: 02:24:00
C74: VILLE 71 | D74: 37 | E74: 40.7 | F74: 74 | G74: 81.4 | H74: 00:57:00 | I74: 01:08:24 | J74: 01:54:00 | K74: 02:16:48
C75: VILLE 72 | D75: 40 | E75: 44 | F75: 80 | G75: 88 | H75: 00:58:00 | I75: 01:09:36 | J75: 01:56:00 | K75: 02:19:12
C76: VILLE 73 | D76: 19 | E76: 20.9 | F76: 38 | G76: 41.8 | H76: 00:29:00 | I76: 00:34:48 | J76: 00:58:00 | K76: 01:09:36
C77: VILLE 74 | D77: 30.6 | E77: 33.66 | F77: 61.2 | G77: 67.32 | H77: 00:55:00 | I77: 01:06:00 | J77: 01:50:00 | K77: 02:12:00
C78: VILLE 75 | D78: 81 | E78: 89.1 | F78: 162 | G78: 178.2 | H78: 01:24:00 | I78: 01:40:48 | J78: 02:48:00 | K78: 03:21:36
C79: VILLE 76 | D79: 23 | E79: 25.3 | F79: 46 | G79: 50.6 | H79: 00:42:00 | I79: 00:50:24 | J79: 01:24:00 | K79: 01:40:48
C80: VILLE 77 | D80: 38.8 | E80: 42.68 | F80: 77.6 | G80: 85.36 | H80: 01:09:00 | I80: 01:22:48 | J80: 02:18:00 | K80: 02:45:36
C81: VILLE 78 | D81: 69 | E81: 75.9 | F81: 138 | G81: 151.8 | H81: 01:27:00 | I81: 01:44:24 | J81: 02:54:00 | K81: 03:28:48
C82: VILLE 79 | D82: 9.7 | E82: 10.67 | F82: 19.4 | G82: 21.34 | H82: 00:16:00 | I82: 00:19:12 | J82: 00:32:00 | K82: 00:38:24
C83: VILLE 80 | D83: 74 | E83: 81.4 | F83: 148 | G83: 162.8 | H83: 01:29:00 | I83: 01:46:48 | J83: 02:58:00 | K83: 03:33:36
C84: VILLE 81 | D84: 24.3 | E84: 26.73 | F84: 48.6 | G84: 53.46 | H84: 00:41:00 | I84: 00:49:12 | J84: 01:22:00 | K84: 01:38:24
C85: VILLE 82 | D85: 36.6 | E85: 40.26 | F85: 73.2 | G85: 80.52 | H85: 01:05:00 | I85: 01:18:00 | J85: 02:10:00 | K85: 02:36:00
C86: VILLE 83 | D86: 36.2 | E86: 39.82 | F86: 72.4 | G86: 79.64 | H86: 01:02:00 | I86: 01:14:24 | J86: 02:04:00 | K86: 02:28:48
C87: VILLE 84 | D87: 18.1 | E87: 19.91 | F87: 36.2 | G87: 39.82 | H87: 00:35:00 | I87: 00:42:00 | J87: 01:10:00 | K87: 01:24:00
C88: VILLE 85 | D88: 15 | E88: 16.5 | F88: 30 | G88: 33 | H88: 00:25:00 | I88: 00:30:00 | J88: 00:50:00 | K88: 01:00:00
C89: VILLE 86 | D89: 61 | E89: 67.1 | F89: 122 | G89: 134.2 | H89: 01:13:00 | I89: 01:27:36 | J89: 02:26:00 | K89: 02:55:12
C90: VILLE 87 | D90: 14 | E90: 15.4 | F90: 28 | G90: 30.8 | H90: 00:21:00 | I90: 00:25:12 | J90: 00:42:00 | K90: 00:50:24
C91: VILLE 88 | D91: 15.6 | E91: 17.16 | F91: 31.2 | G91: 34.32 | H91: 00:31:00 | I91: 00:37:12 | J91: 01:02:00 | K91: 01:14:24
C92: VILLE 89 | D92: 11.8 | E92: 12.98 | F92: 23.6 | G92: 25.96 | H92: 00:23:00 | I92: 00:27:36 | J92: 00:46:00 | K92: 00:55:12
C93: VILLE 90 | D93: 49.7 | E93: 54.67 | F93: 99.4 | G93: 109.34 | H93: 01:10:00 | I93: 01:24:00 | J93: 02:20:00 | K93: 02:48:00
C94: VILLE 91 | D94: 26.5 | E94: 29.15 | F94: 53 | G94: 58.3 | H94: 00:45:00 | I94: 00:54:00 | J94: 01:30:00 | K94: 01:48:00
C95: VILLE 92 | D95: 52 | E95: 57.2 | F95: 104 | G95: 114.4 | H95: 01:08:00 | I95: 01:21:36 | J95: 02:16:00 | K95: 02:43:12
C96: VILLE 93 | D96: 11 | E96: 12.1 | F96: 22 | G96: 24.2 | H96: 00:18:00 | I96: 00:21:36 | J96: 00:36:00 | K96: 00:43:12
C97: VILLE 94 | D97: 33.7 | E97: 37.07 | F97: 67.4 | G97: 74.14 | H97: 01:00:00 | I97: 01:12:00 | J97: 02:00:00 | K97: 02:24:00
C98: VILLE 95 | D98: 17.8 | E98: 19.58 | F98: 35.6 | G98: 39.16 | H98: 00:35:00 | I98: 00:42:00 | J98: 01:10:00 | K98: 01:24:00
C99: VILLE 96 | D99: 2.5 | E99: 2.75 | F99: 5 | G99: 5.5 | H99: 00:05:00 | I99: 00:06:00 | J99: 00:10:00 | K99: 00:12:00
C100: VILLE 97 | D100: 66 | E100: 72.6 | F100: 132 | G100: 145.2 | H100: 01:16:00 | I100: 01:31:12 | J100: 02:32:00 | K100: 03:02:24
C101: VILLE 98 | D101: 70 | E101: 77 | F101: 140 | G101: 154 | H101: 01:20:00 | I101: 01:36:00 | J101: 02:40:00 | K101: 03:12:00
C102: VILLE 99 | D102: 46 | E102: 50.6 | F102: 92 | G102: 101.2 | H102: 01:12:00 | I102: 01:26:24 | J102: 02:24:00 | K102: 02:52:48
C103: VILLE 100 | D103: 65 | E103: 71.5 | F103: 130 | G103: 143 | H103: 01:20:00 | I103: 01:36:00 | J103: 02:40:00 | K103: 03:12:00
C104: VILLE 101 | D104: 43 | E104: 47.3 | F104: 86 | G104: 94.6 | H104: 00:55:00 | I104: 01:06:00 | J104: 01:50:00 | K104: 02:12:00
C105: VILLE 102 | D105: 49.3 | E105: 54.23 | F105: 98.6 | G105: 108.46 | H105: 01:22:00 | I105: 01:38:24 | J105: 02:44:00 | K105: 03:16:48
C106: VILLE 103 | D106: 52 | E106: 57.2 | F106: 104 | G106: 114.4 | H106: 01:27:00 | I106: 01:44:24 | J106: 02:54:00 | K106: 03:28:48
C107: VILLE 104 | D107: 81 | E107: 89.1 | F107: 162 | G107: 178.2 | H107: 01:32:00 | I107: 01:50:24 | J107: 03:04:00 | K107: 03:40:48
C108: VILLE 105 | D108: 74 | E108: 81.4 | F108: 148 | G108: 162.8 | H108: 01:31:00 | I108: 01:49:12 | J108: 03:02:00 | K108: 03:38:24
C109: VILLE 106 | D109: 28.1 | E109: 30.91 | F109: 56.2 | G109: 61.82 | H109: 00:44:00 | I109: 00:52:48 | J109: 01:28:00 | K109: 01:45:36
C110: VILLE 107 | D110: 2 | E110: 2.2 | F110: 4 | G110: 4.4 | H110: 00:05:00 | I110: 00:06:00 | J110: 00:10:00 | K110: 00:12:00
C111: VILLE 108 | D111: 31.3 | E111: 34.43 | F111: 62.6 | G111: 68.86 | H111: 00:55:00 | I111: 01:06:00 | J111: 01:50:00 | K111: 02:12:00
C112: VILLE 109 | D112: 39.5 | E112: 43.45 | F112: 79 | G112: 86.9 | H112: 01:00:00 | I112: 01:12:00 | J112: 02:00:00 | K112: 02:24:00
C113: VILLE 110 | D113: 45 | E113: 49.5 | F113: 90 | G113: 99 | H113: 01:11:00 | I113: 01:25:12 | J113: 02:22:00 | K113: 02:50:24
C114: VILLE 111 | D114: 24.7 | E114: 27.17 | F114: 49.4 | G114: 54.34 | H114: 00:44:00 | I114: 00:52:48 | J114: 01:28:00 | K114: 01:45:36
C115: VILLE 112 | D115: 81 | E115: 89.1 | F115: 162 | G115: 178.2 | H115: 01:24:00 | I115: 01:40:48 | J115: 02:48:00 | K115: 03:21:36
C116: VILLE 113 | D116: 34 | E116: 37.4 | F116: 68 | G116: 74.8 | H116: 00:53:00 | I116: 01:03:36 | J116: 01:46:00 | K116: 02:07:12
C117: VILLE 114 | D117: 17.9 | E117: 19.69 | F117: 35.8 | G117: 39.38 | H117: 00:35:00 | I117: 00:42:00 | J117: 01:10:00 | K117: 01:24:00
C118: VILLE 115 | D118: 49 | E118: 53.9 | F118: 98 | G118: 107.8 | H118: 01:07:00 | I118: 01:20:24 | J118: 02:14:00 | K118: 02:40:48
C119: VILLE 116 | D119: 70 | E119: 77 | F119: 140 | G119: 154 | H119: 01:20:00 | I119: 01:36:00 | J119: 02:40:00 | K119: 03:12:00
C120: VILLE 117 | D120: 45.3 | E120: 49.83 | F120: 90.6 | G120: 99.66 | H120: 01:08:00 | I120: 01:21:36 | J120: 02:16:00 | K120: 02:43:12
C121: VILLE 118 | D121: 66 | E121: 72.6 | F121: 132 | G121: 145.2 | H121: 01:15:00 | I121: 01:30:00 | J121: 02:30:00 | K121: 03:00:00
C122: VILLE 119 | D122: 26.9 | E122: 29.59 | F122: 53.8 | G122: 59.18 | H122: 00:46:00 | I122: 00:55:12 | J122: 01:32:00 | K122: 01:50:24
C123: VILLE 120 | D123: 34 | E123: 37.4 | F123: 68 | G123: 74.8 | H123: 00:53:00 | I123: 01:03:36 | J123: 01:46:00 | K123: 02:07:12
C124: VILLE 121 | D124: 30.9 | E124: 33.99 | F124: 61.8 | G124: 67.98 | H124: 00:53:00 | I124: 01:03:36 | J124: 01:46:00 | K124: 02:07:12
C125: VILLE 122 | D125: 41 | E125: 45.1 | F125: 82 | G125: 90.2 | H125: 01:01:00 | I125: 01:13:12 | J125: 02:02:00 | K125: 02:26:24
C126: VILLE 123 | D126: 70 | E126: 77 | F126: 140 | G126: 154 | H126: 01:20:00 | I126: 01:36:00 | J126: 02:40:00 | K126: 03:12:00
C127: VILLE 124 | D127: 26 | E127: 28.6 | F127: 52 | G127: 57.2 | H127: 00:44:00 | I127: 00:52:48 | J127: 01:28:00 | K127: 01:45:36
C128: VILLE 125 | D128: 33 | E128: 36.3 | F128: 66 | G128: 72.6 | H128: 00:49:00 | I128: 00:58:48 | J128: 01:38:00 | K128: 01:57:36
C129: VILLE 126 | D129: 11 | E129: 12.1 | F129: 22 | G129: 24.2 | H129: 00:22:00 | I129: 00:26:24 | J129: 00:44:00 | K129: 00:52:48
C130: VILLE 127 | D130: 54 | E130: 59.4 | F130: 108 | G130: 118.8 | H130: 01:05:00 | I130: 01:18:00 | J130: 02:10:00 | K130: 02:36:00
C131: VILLE 128 | D131: 94 | E131: 103.4 | F131: 188 | G131: 206.8 | H131: 02:00:00 | I131: 02:24:00 | J131: 04:00:00 | K131: 04:48:00
C132: VILLE 129 | D132: 78 | E132: 85.8 | F132: 156 | G132: 171.6 | H132: 01:34:00 | I132: 01:52:48 | J132: 03:08:00 | K132: 03:45:36
C133: VILLE 130 | D133: 73 | E133: 80.3 | F133: 146 | G133: 160.6 | H133: 01:21:00 | I133: 01:37:12 | J133: 02:42:00 | K133: 03:14:24
C134: VILLE 131 | D134: 88 | E134: 96.8 | F134: 176 | G134: 193.6 | H134: 01:41:00 | I134: 02:01:12 | J134: 03:22:00 | K134: 04:02:24
C135: VILLE 132 | D135: 42.4 | E135: 46.64 | F135: 84.8 | G135: 93.28 | H135: 01:10:00 | I135: 01:24:00 | J135: 02:20:00 | K135: 02:48:00
C136: VILLE 133 | D136: 72 | E136: 79.2 | F136: 144 | G136: 158.4 | H136: 01:24:00 | I136: 01:40:48 | J136: 02:48:00 | K136: 03:21:36
C137: VILLE 134 | D137: 37 | E137: 40.7 | F137: 74 | G137: 81.4 | H137: 00:54:00 | I137: 01:04:48 | J137: 01:48:00 | K137: 02:09:36
C138: VILLE 135 | D138: 17 | E138: 18.7 | F138: 34 | G138: 37.4 | H138: 00:29:00 | I138: 00:34:48 | J138: 00:58:00 | K138: 01:09:36
C139: VILLE 136 | D139: 17 | E139: 18.7 | F139: 34 | G139: 37.4 | H139: 00:29:00 | I139: 00:34:48 | J139: 00:58:00 | K139: 01:09:36
C140: VILLE 137 | D140: 80 | E140: 88 | F140: 160 | G140: 176 | H140: 01:27:00 | I140: 01:44:24 | J140: 02:54:00 | K140: 03:28:48
C141: VILLE 138 | D141: 37 | E141: 40.7 | F141: 74 | G141: 81.4 | H141: 00:59:00 | I141: 01:10:48 | J141: 01:58:00 | K141: 02:21:36
C142: VILLE 139 | D142: 52 | E142: 57.2 | F142: 104 | G142: 114.4 | H142: 01:00:00 | I142: 01:12:00 | J142: 02:00:00 | K142: 02:24:00
C143: VILLE 140 | D143: 62 | E143: 68.2 | F143: 124 | G143: 136.4 | H143: 01:14:00 | I143: 01:28:48 | J143: 02:28:00 | K143: 02:57:36
C144: VILLE 141 | D144: 33.9 | E144: 37.29 | F144: 67.8 | G144: 74.58 | H144: 00:59:00 | I144: 01:10:48 | J144: 01:58:00 | K144: 02:21:36
C145: VILLE 142 | D145: 42 | E145: 46.2 | F145: 84 | G145: 92.4 | H145: 00:56:00 | I145: 01:07:12 | J145: 01:52:00 | K145: 02:14:24
C146: VILLE 143 | D146: 51 | E146: 56.1 | F146: 102 | G146: 112.2 | H146: 01:23:00 | I146: 01:39:36 | J146: 02:46:00 | K146: 03:19:12
C147: VILLE 144 | D147: 74 | E147: 81.4 | F147: 148 | G147: 162.8 | H147: 01:42:00 | I147: 02:02:24 | J147: 03:24:00 | K147: 04:04:48
C148: VILLE 145 | D148: 19.9 | E148: 21.89 | F148: 39.8 | G148: 43.78 | H148: 00:39:00 | I148: 00:46:48 | J148: 01:18:00 | K148: 01:33:36
C149: VILLE 146 | D149: 55 | E149: 60.5 | F149: 110 | G149: 121 | H149: 01:11:00 | I149: 01:25:12 | J149: 02:22:00 | K149: 02:50:24
C150: VILLE 147 | D150: 38.8 | E150: 42.68 | F150: 77.6 | G150: 85.36 | H150: 01:03:00 | I150: 01:15:36 | J150: 02:06:00 | K150: 02:31:12
C151: VILLE 148 | D151: 33.2 | E151: 36.52 | F151: 66.4 | G151: 73.04 | H151: 00:56:00 | I151: 01:07:12 | J151: 01:52:00 | K151: 02:14:24
C152: VILLE 149 | D152: 51 | E152: 56.1 | F152: 102 | G152: 112.2 | H152: 01:14:00 | I152: 01:28:48 | J152: 02:28:00 | K152: 02:57:36
C153: VILLE 150 | D153: 32.7 | E153: 35.97 | F153: 65.4 | G153: 71.94 | H153: 01:50:00 | I153: 02:12:00 | J153: 03:40:00 | K153: 04:24:00
C154: VILLE 151 | D154: 14 | E154: 15.4 | F154: 28 | G154: 30.8 | H154: 00:23:00 | I154: 00:27:36 | J154: 00:46:00 | K154: 00:55:12
C155: VILLE 152 | D155: 27 | E155: 29.7 | F155: 54 | G155: 59.4 | H155: 00:43:00 | I155: 00:51:36 | J155: 01:26:00 | K155: 01:43:12
C156: VILLE 153 | D156: 74 | E156: 81.4 | F156: 148 | G156: 162.8 | H156: 01:33:00 | I156: 01:51:36 | J156: 03:06:00 | K156: 03:43:12
C157: VILLE 154 | D157: 24 | E157: 26.4 | F157: 48 | G157: 52.8 | H157: 00:36:00 | I157: 00:43:12 | J157: 01:12:00 | K157: 01:26:24
C158: VILLE 155 | D158: 46 | E158: 50.6 | F158: 92 | G158: 101.2 | H158: 01:04:00 | I158: 01:16:48 | J158: 02:08:00 | K158: 02:33:36
C159: VILLE 156 | D159: 35 | E159: 38.5 | F159: 70 | G159: 77 | H159: 00:54:00 | I159: 01:04:48 | J159: 01:48:00 | K159: 02:09:36
C160: VILLE 157 | D160: 23.9 | E160: 26.29 | F160: 47.8 | G160: 52.58 | H160: 00:40:00 | I160: 00:48:00 | J160: 01:20:00 | K160: 01:36:00
C161: VILLE 158 | D161: 48 | E161: 52.8 | F161: 96 | G161: 105.6 | H161: 01:02:00 | I161: 01:14:24 | J161: 02:04:00 | K161: 02:28:48
C162: VILLE 159 | D162: 4 | E162: 4.4 | F162: 8 | G162: 8.8 | H162: 00:08:00 | I162: 00:09:36 | J162: 00:16:00 | K162: 00:19:12
C163: VILLE 160 | D163: 45.7 | E163: 50.27 | F163: 91.4 | G163: 100.54 | H163: 01:03:00 | I163: 01:15:36 | J163: 02:06:00 | K163: 02:31:12
C164: VILLE 161 | D164: 146 | E164: 160.6 | F164: 292 | G164: 321.2 | H164: 02:35:00 | I164: 03:06:00 | J164: 05:10:00 | K164: 06:12:00
C165: VILLE 162 | D165: 34 | E165: 37.4 | F165: 68 | G165: 74.8 | H165: 01:10:00 | I165: 01:24:00 | J165: 02:20:00 | K165: 02:48:00
C166: VILLE 163 | D166: 69.3 | E166: 76.23 | F166: 138.6 | G166: 152.46 | H166: 01:17:00 | I166: 01:32:24 | J166: 02:34:00 | K166: 03:04:48
C167: VILLE 164 | D167: 31 | E167: 34.1 | F167: 62 | G167: 68.2 | H167: 00:45:00 | I167: 00:54:00 | J167: 01:30:00 | K167: 01:48:00
E168: =+D168*(1+$E$3) -> 0 | F168: =+D168*2 -> 0 | G168: =+E168*2 -> 0 | I168: =+H168*(1+$I$3) -> 00:00:00 | J168: =+H168*2 -> 00:00:00 | K168: =+I168*2 -> 00:00:00
E169: 0 | F169: 0 | G169: 0 | I169: 00:00:00 | J169: 00:00:00 | K169: 00:00:00
E170: 0 | F170: 0 | G170: 0 | I170: 00:00:00 | J170: 00:00:00 | K170: 00:00:00
E171: 0 | F171: 0 | G171: 0 | I171: 00:00:00 | J171: 00:00:00 | K171: 00:00:00
E172: 0 | F172: 0 | G172: 0 | I172: 00:00:00 | J172: 00:00:00 | K172: 00:00:00
E173: 0 | F173: 0 | G173: 0 | I173: 00:00:00 | J173: 00:00:00 | K173: 00:00:00
E174: 0 | F174: 0 | G174: 0 | I174: 00:00:00 | J174: 00:00:00 | K174: 00:00:00
E175: 0 | F175: 0 | G175: 0 | I175: 00:00:00 | J175: 00:00:00 | K175: 00:00:00
E176: 0 | F176: 0 | G176: 0 | I176: 00:00:00 | J176: 00:00:00 | K176: 00:00:00
E177: 0 | F177: 0 | G177: 0 | I177: 00:00:00 | J177: 00:00:00 | K177: 00:00:00
E178: 0 | F178: 0 | G178: 0 | I178: 00:00:00 | J178: 00:00:00 | K178: 00:00:00
E179: 0 | F179: 0 | G179: 0 | I179: 00:00:00 | J179: 00:00:00 | K179: 00:00:00
E180: 0 | F180: 0 | G180: 0 | I180: 00:00:00 | J180: 00:00:00 | K180: 00:00:00
E181: 0 | F181: 0 | G181: 0 | I181: 00:00:00 | J181: 00:00:00 | K181: 00:00:00
E182: 0 | F182: 0 | G182: 0 | I182: 00:00:00 | J182: 00:00:00 | K182: 00:00:00
E183: 0 | F183: 0 | G183: 0 | I183: 00:00:00 | J183: 00:00:00 | K183: 00:00:00
E184: 0 | F184: 0 | G184: 0 | I184: 00:00:00 | J184: 00:00:00 | K184: 00:00:00
E185: 0 | F185: 0 | G185: 0 | I185: 00:00:00 | J185: 00:00:00 | K185: 00:00:00
E186: 0 | F186: 0 | G186: 0 | I186: 00:00:00 | J186: 00:00:00 | K186: 00:00:00
E187: 0 | F187: 0 | G187: 0 | I187: 00:00:00 | J187: 00:00:00 | K187: 00:00:00
E188: 0 | F188: 0 | G188: 0 | I188: 00:00:00 | J188: 00:00:00 | K188: 00:00:00
E189: 0 | F189: 0 | G189: 0 | I189: 00:00:00 | J189: 00:00:00 | K189: 00:00:00
E190: 0 | F190: 0 | G190: 0 | I190: 00:00:00 | J190: 00:00:00 | K190: 00:00:00
E191: 0 | F191: 0 | G191: 0 | I191: 00:00:00 | J191: 00:00:00 | K191: 00:00:00
E192: 0 | F192: 0 | G192: 0 | I192: 00:00:00 | J192: 00:00:00 | K192: 00:00:00
E193: 0 | F193: 0 | G193: 0 | I193: 00:00:00 | J193: 00:00:00 | K193: 00:00:00
E194: 0 | F194: 0 | G194: 0 | I194: 00:00:00 | J194: 00:00:00 | K194: 00:00:00
E195: 0 | F195: 0 | G195: 0 | I195: 00:00:00 | J195: 00:00:00 | K195: 00:00:00
E196: 0 | F196: 0 | G196: 0 | I196: 00:00:00 | J196: 00:00:00 | K196: 00:00:00
E197: 0 | F197: 0 | G197: 0 | I197: =+H197*(1+$I$3) -> 00:00:00 | J197: =+H197*2 -> 00:00:00 | K197: =+I197*2 -> 00:00:00
E198: =+D198*(1+$E$3) -> 0 | F198: =+D198*2 -> 0 | G198: =+E198*2 -> 0 | I198: 00:00:00 | J198: 00:00:00 | K198: 00:00:00
E199: 0 | F199: 0 | G199: 0 | I199: 00:00:00 | J199: 00:00:00 | K199: 00:00:00
E200: 0 | F200: 0 | G200: 0 | I200: 00:00:00 | J200: 00:00:00 | K200: 00:00:00
E201: 0 | F201: 0 | G201: 0 | I201: 00:00:00 | J201: 00:00:00 | K201: 00:00:00
E202: 0 | F202: 0 | G202: 0 | I202: 00:00:00 | J202: 00:00:00 | K202: 00:00:00
... 97 more rows

Sheet COUT TR 2019
C3: 2019
C4: CHARGE 1 | D4: 8000 | F4: AMORTISSEMENT | G4: CHOIX DU VEHICULE | L4: COUT/AN/VEHICULE
C5: CHARGE 2 | D5: 8000 | F5: 1 | G5: VEHICULE 1 | H5: IMMAT XX 99 | I5: 50000 | J5: 5 | K5: =+I5/J5 -> 10000 | L5: =+K5+$D$18 -> 20400 | M5: =+$K$32/$F$14 -> 20000 | N5: =+L5/M5 -> 1.02
C6: CHARGE 3 | D6: 8000 | F6: 2 | G6: VEHICULE 2 | H6: IMMAT XX 100 | I6: 50000 | J6: 5 | K6: 10000 | L6: 20400 | M6: =+$K$32/$F$14 -> 20000 | N6: 1.02
C7: CHARGE 4 | D7: 8000 | F7: 3 | G7: VEHICULE 3 | H7: IMMAT XX 101 | I7: 50000 | J7: 5 | K7: 10000 | L7: 20400 | M7: 20000 | N7: 1.02
C8: CHARGE 5 | D8: 8000 | F8: 4 | G8: VEHICULE 4 | H8: IMMAT XX 102 | I8: 50000 | J8: 5 | K8: 10000 | L8: 20400 | M8: 20000 | N8: 1.02
C9: CHARGE 6 | D9: 8000 | F9: 5 | G9: VEHICULE 5 | H9: IMMAT XX 103 | I9: 50000 | J9: 5 | K9: 10000 | L9: 20400 | M9: 20000 | N9: 1.02
C10: CHARGE 7 | D10: 8000 | F10: 6 | G10: VEHICULE 6 | H10: IMMAT XX 104 | I10: 50000 | J10: 5 | K10: 10000 | L10: 20400 | M10: 20000 | N10: 1.02
C11: CHARGE 8 | D11: 8000 | F11: 7 | G11: VEHICULE 7 | H11: IMMAT XX 105 | I11: 50000 | J11: 5 | K11: 10000 | L11: 20400 | M11: 20000 | N11: 1.02
C12: CHARGE 9 | D12: 8000 | F12: 8 | G12: VEHICULE 8 | H12: IMMAT XX 106 | I12: 50000 | J12: 5 | K12: 10000 | L12: 20400 | M12: 20000 | N12: 1.02
C13: CHARGE 10 | D13: 8000 | F13: 9 | G13: VEHICULE 9 | H13: IMMAT XX 107 | I13: 50000 | J13: 5 | K13: 10000 | L13: 20400 | M13: 20000 | N13: =+L13/M13 -> 1.02
C14: CHARGE 11 | D14: 8000 | F14: 10 | G14: VEHICULE 10 | H14: IMMAT XX 108 | I14: 50000 | J14: 5 | K14: 10000 | L14: 20400 | M14: 20000 | N14: =+L14/M14 -> 1.02
C15: CHARGE 12 | D15: 8000 | K15: =SUM(K5:K14) -> 100000 | M15: =SUM(M5:M14) -> 200000
C16: CHARGE 13 | D16: 8000
C17: somme | D17: =SUM(D4:D16) -> 104000
C18: par VEHICULE = | D18: =+D17/F14 -> 10400
I20: 2019 | J20: 2018
F21: KM | I21: KM PARCOURU
F22: 1 | G22: VEHICULE 1 | H22: IMMAT XX 99 | I22: 100000 | J22: 80000 | K22: =+I22-J22 -> 20000
F23: 2 | G23: VEHICULE 2 | H23: IMMAT XX 100 | I23: 100000 | J23: 80000 | K23: 20000
F24: 3 | G24: VEHICULE 3 | H24: IMMAT XX 101 | I24: 100000 | J24: 80000 | K24: 20000
F25: 4 | G25: VEHICULE 4 | H25: IMMAT XX 102 | I25: 100000 | J25: 80000 | K25: 20000
F26: 5 | G26: VEHICULE 5 | H26: IMMAT XX 103 | I26: 100000 | J26: 80000 | K26: 20000
F27: 6 | G27: VEHICULE 6 | H27: IMMAT XX 104 | I27: 100000 | J27: 80000 | K27: =+I27-J27 -> 20000
F28: 7 | G28: VEHICULE 7 | H28: IMMAT XX 105 | I28: 100000 | J28: 80000 | K28: 20000
F29: 8 | G29: VEHICULE 8 | H29: IMMAT XX 106 | I29: 100000 | J29: 80000 | K29: 20000
F30: 9 | G30: VEHICULE 9 | H30: IMMAT XX 107 | I30: 100000 | J30: 80000 | K30: 20000
F31: 10 | G31: VEHICULE 10 | H31: IMMAT XX 108 | I31: 100000 | J31: 80000 | K31: 20000
K32: =SUM(K22:K31) -> 200000

Sheet BD
A1: Choix1 | B1: Choix2 | C1: Choix3 | E1: Choix1 | G1: Choix1 | H1: Choix2
A2: =+'PLANNING LIV'!D25 -> 2019-12-30 | B2: MATIN | C2: =+'PLANNING LIV'!C96 -> CHAUFFEUR 1 dispo | E2: =+A2 -> 2019-12-30 | G2: =+E2 -> 2019-12-30 | H2: MATIN
A3: =+A2 -> 2019-12-30 | B3: MATIN | C3: =+'PLANNING LIV'!D96 -> NON | E3: =+E2+1 -> 2019-12-31 | G3: =+E2 -> 2019-12-30 | H3: APRES MIDI
A4: =+A3 -> 2019-12-30 | B4: MATIN | C4: =+'PLANNING LIV'!E96 -> NON | E4: =+E3+1 -> 2020-01-01 | G4: =+G2+1 -> 2019-12-31 | H4: MATIN
A5: 2019-12-30 | B5: APRES MIDI | C5: =+'PLANNING LIV'!C125 -> NON | E5: 2020-01-02 | G5: =+G3+1 -> 2019-12-31 | H5: APRES MIDI
A6: 2019-12-30 | B6: APRES MIDI | C6: =+'PLANNING LIV'!D125 -> NON | E6: 2020-01-03 | G6: =+G4+1 -> 2020-01-01 | H6: MATIN
A7: 2019-12-30 | B7: APRES MIDI | C7: =+'PLANNING LIV'!E125 -> NON | E7: 2020-01-04 | G7: 2020-01-01 | H7: APRES MIDI
A8: =+A2+1 -> 2019-12-31 | B8: MATIN | C8: =+'PLANNING LIV'!H96 -> NON | E8: 2020-01-05 | G8: 2020-01-02 | H8: MATIN
A9: =+A3+1 -> 2019-12-31 | B9: MATIN | C9: =+'PLANNING LIV'!I96 -> NON | E9: 2020-01-06 | G9: 2020-01-02 | H9: APRES MIDI
A10: 2019-12-31 | B10: MATIN | C10: =+'PLANNING LIV'!J96 -> NON | E10: 2020-01-07 | G10: 2020-01-03 | H10: MATIN
A11: 2019-12-31 | B11: APRES MIDI | C11: =+'PLANNING LIV'!H125 -> NON | E11: 2020-01-08 | G11: 2020-01-03 | H11: APRES MIDI
A12: 2019-12-31 | B12: APRES MIDI | C12: =+'PLANNING LIV'!I125 -> NON | E12: 2020-01-09 | G12: 2020-01-04 | H12: MATIN
A13: 2019-12-31 | B13: APRES MIDI | C13: =+'PLANNING LIV'!J125 -> NON | E13: 2020-01-10 | G13: =G2+7 -> 2020-01-06 | H13: MATIN
A14: =+A8+1 -> 2020-01-01 | B14: MATIN | C14: =+'PLANNING LIV'!M96 -> NON | E14: 2020-01-11 | G14: =G3+7 -> 2020-01-06 | H14: APRES MIDI
A15: 2020-01-01 | B15: MATIN | C15: =+'PLANNING LIV'!N96 -> NON | E15: 2020-01-12 | G15: 2020-01-07 | H15: MATIN
A16: 2020-01-01 | B16: MATIN | C16: =+'PLANNING LIV'!O96 -> NON | E16: 2020-01-13 | G16: 2020-01-07 | H16: APRES MIDI
A17: 2020-01-01 | B17: APRES MIDI | C17: =+'PLANNING LIV'!M125 -> NON | E17: 2020-01-14 | G17: 2020-01-08 | H17: MATIN
A18: 2020-01-01 | B18: APRES MIDI | C18: =+'PLANNING LIV'!N125 -> NON | E18: 2020-01-15 | G18: 2020-01-08 | H18: APRES MIDI
A19: 2020-01-01 | B19: APRES MIDI | C19: =+'PLANNING LIV'!O125 -> NON | E19: 2020-01-16 | G19: 2020-01-09 | H19: MATIN
A20: 2020-01-02 | B20: MATIN | C20: =+'PLANNING LIV'!R96 -> NON | E20: 2020-01-17 | G20: 2020-01-09 | H20: APRES MIDI
A21: 2020-01-02 | B21: MATIN | C21: =+'PLANNING LIV'!S96 -> NON | E21: 2020-01-18 | G21: 2020-01-10 | H21: MATIN
A22: 2020-01-02 | B22: MATIN | C22: =+'PLANNING LIV'!T96 -> NON | E22: 2020-01-19 | G22: 2020-01-10 | H22: APRES MIDI
A23: 2020-01-02 | B23: APRES MIDI | C23: =+'PLANNING LIV'!R125 -> NON | E23: 2020-01-20 | G23: 2020-01-11 | H23: MATIN
A24: 2020-01-02 | B24: APRES MIDI | C24: =+'PLANNING LIV'!S125 -> NON | E24: 2020-01-21 | G24: =G13+7 -> 2020-01-13 | H24: MATIN
A25: 2020-01-02 | B25: APRES MIDI | C25: =+'PLANNING LIV'!T125 -> NON | E25: 2020-01-22 | G25: =G14+7 -> 2020-01-13 | H25: APRES MIDI
A26: 2020-01-03 | B26: MATIN | C26: =+'PLANNING LIV'!W96 -> NON | E26: 2020-01-23 | G26: 2020-01-14 | H26: MATIN
A27: 2020-01-03 | B27: MATIN | C27: =+'PLANNING LIV'!X96 -> NON | E27: 2020-01-24 | G27: 2020-01-14 | H27: APRES MIDI
A28: 2020-01-03 | B28: MATIN | C28: =+'PLANNING LIV'!Y96 -> NON | E28: 2020-01-25 | G28: 2020-01-15 | H28: MATIN
A29: 2020-01-03 | B29: APRES MIDI | C29: ='PLANNING LIV'!W125 -> NON | E29: 2020-01-26 | G29: 2020-01-15 | H29: APRES MIDI
A30: 2020-01-03 | B30: APRES MIDI | C30: ='PLANNING LIV'!X125 -> NON | E30: 2020-01-27 | G30: 2020-01-16 | H30: MATIN
A31: 2020-01-03 | B31: APRES MIDI | C31: ='PLANNING LIV'!Y125 -> NON | E31: 2020-01-28 | G31: 2020-01-16 | H31: APRES MIDI
A32: 2020-01-04 | B32: MATIN | C32: =+'PLANNING LIV'!AB96 -> NON | E32: 2020-01-29 | G32: 2020-01-17 | H32: MATIN
A33: 2020-01-04 | B33: MATIN | C33: =+'PLANNING LIV'!AC96 -> NON | E33: 2020-01-30 | G33: 2020-01-17 | H33: APRES MIDI
A34: 2020-01-04 | B34: MATIN | C34: =+'PLANNING LIV'!AD96 -> NON | E34: 2020-01-31 | G34: 2020-01-18 | H34: MATIN
A35: =+A2+7 -> 2020-01-06 | B35: MATIN | C35: ='PLANNING LIV'!C156 -> NON | E35: 2020-02-01 | G35: =G24+7 -> 2020-01-20 | H35: MATIN
A36: =+A35 -> 2020-01-06 | B36: MATIN | C36: =+'PLANNING LIV'!D156 -> NON | G36: =G25+7 -> 2020-01-20 | H36: APRES MIDI
A37: =+A36 -> 2020-01-06 | B37: MATIN | C37: =+'PLANNING LIV'!E156 -> NON | G37: 2020-01-21 | H37: MATIN
A38: 2020-01-06 | B38: APRES MIDI | C38: ='PLANNING LIV'!C185 -> NON | G38: 2020-01-21 | H38: APRES MIDI
A39: 2020-01-06 | B39: APRES MIDI | C39: ='PLANNING LIV'!D185 -> NON | G39: 2020-01-22 | H39: MATIN
A40: 2020-01-06 | B40: APRES MIDI | C40: ='PLANNING LIV'!E185 -> NON | G40: 2020-01-22 | H40: APRES MIDI
A41: 2020-01-07 | B41: MATIN | C41: ='PLANNING LIV'!H156 -> NON | G41: 2020-01-23 | H41: MATIN
A42: 2020-01-07 | B42: MATIN | C42: ='PLANNING LIV'!I156 -> NON | G42: 2020-01-23 | H42: APRES MIDI
A43: 2020-01-07 | B43: MATIN | C43: ='PLANNING LIV'!J156 -> NON | G43: 2020-01-24 | H43: MATIN
A44: 2020-01-07 | B44: APRES MIDI | C44: ='PLANNING LIV'!H185 -> NON | G44: 2020-01-24 | H44: APRES MIDI
A45: 2020-01-07 | B45: APRES MIDI | C45: ='PLANNING LIV'!I185 -> NON | G45: 2020-01-25 | H45: MATIN
A46: 2020-01-07 | B46: APRES MIDI | C46: ='PLANNING LIV'!J185 -> NON | G46: =G35+7 -> 2020-01-27 | H46: MATIN
A47: 2020-01-08 | B47: MATIN | C47: ='PLANNING LIV'!M156 -> NON | G47: =G36+7 -> 2020-01-27 | H47: APRES MIDI
A48: 2020-01-08 | B48: MATIN | C48: ='PLANNING LIV'!N156 -> NON | G48: 2020-01-28 | H48: MATIN
A49: 2020-01-08 | B49: MATIN | C49: ='PLANNING LIV'!O156 -> NON | G49: 2020-01-28 | H49: APRES MIDI
A50: 2020-01-08 | B50: APRES MIDI | C50: ='PLANNING LIV'!M185 -> NON | G50: 2020-01-29 | H50: MATIN
A51: 2020-01-08 | B51: APRES MIDI | C51: ='PLANNING LIV'!N185 -> NON | G51: 2020-01-29 | H51: APRES MIDI
A52: 2020-01-08 | B52: APRES MIDI | C52: ='PLANNING LIV'!O185 -> NON | G52: 2020-01-30 | H52: MATIN
A53: 2020-01-09 | B53: MATIN | C53: ='PLANNING LIV'!R156 -> NON | G53: 2020-01-30 | H53: APRES MIDI
A54: 2020-01-09 | B54: MATIN | C54: ='PLANNING LIV'!S156 -> NON | G54: 2020-01-31 | H54: MATIN
A55: 2020-01-09 | B55: MATIN | C55: =+'PLANNING LIV'!T156 -> NON | G55: 2020-01-31 | H55: APRES MIDI
A56: 2020-01-09 | B56: APRES MIDI | C56: ='PLANNING LIV'!R185 -> NON | G56: 2020-02-01 | H56: MATIN
A57: 2020-01-09 | B57: APRES MIDI | C57: =+'PLANNING LIV'!S185 -> NON
A58: 2020-01-09 | B58: APRES MIDI | C58: =+'PLANNING LIV'!T185 -> NON
A59: 2020-01-10 | B59: MATIN | C59: ='PLANNING LIV'!W156 -> NON
A60: 2020-01-10 | B60: MATIN | C60: ='PLANNING LIV'!X156 -> NON
A61: 2020-01-10 | B61: MATIN | C61: ='PLANNING LIV'!Y156 -> NON
A62: 2020-01-10 | B62: APRES MIDI | C62: ='PLANNING LIV'!W185 -> NON
A63: 2020-01-10 | B63: APRES MIDI | C63: ='PLANNING LIV'!X185 -> NON
A64: =+A58+1 -> 2020-01-10 | B64: APRES MIDI | C64: ='PLANNING LIV'!Y185 -> NON
A65: 2020-01-11 | B65: MATIN | C65: =+'PLANNING LIV'!AB156 -> NON
A66: 2020-01-11 | B66: MATIN | C66: =+'PLANNING LIV'!AC156 -> NON
A67: 2020-01-11 | B67: MATIN | C67: =+'PLANNING LIV'!AD156 -> NON
A68: =+A35+7 -> 2020-01-13 | B68: MATIN | C68: ='PLANNING LIV'!C215 -> NON
A69: =+A68 -> 2020-01-13 | B69: MATIN | C69: ='PLANNING LIV'!D215 -> NON
A70: =+A69 -> 2020-01-13 | B70: MATIN | C70: ='PLANNING LIV'!E215 -> NON
A71: 2020-01-13 | B71: APRES MIDI | C71: ='PLANNING LIV'!C244 -> NON
A72: 2020-01-13 | B72: APRES MIDI | C72: ='PLANNING LIV'!D244 -> NON
A73: 2020-01-13 | B73: APRES MIDI | C73: ='PLANNING LIV'!E244 -> NON
A74: =+A68+1 -> 2020-01-14 | B74: MATIN | C74: ='PLANNING LIV'!H215 -> NON
A75: 2020-01-14 | B75: MATIN | C75: ='PLANNING LIV'!I215 -> NON
A76: 2020-01-14 | B76: MATIN | C76: ='PLANNING LIV'!J215 -> NON
A77: 2020-01-14 | B77: APRES MIDI | C77: =+'PLANNING LIV'!H244 -> NON
A78: 2020-01-14 | B78: APRES MIDI | C78: =+'PLANNING LIV'!I244 -> NON
A79: 2020-01-14 | B79: APRES MIDI | C79: =+'PLANNING LIV'!J244 -> NON
A80: 2020-01-15 | B80: MATIN | C80: =+'PLANNING LIV'!M215 -> NON
A81: 2020-01-15 | B81: MATIN | C81: =+'PLANNING LIV'!N215 -> NON
A82: 2020-01-15 | B82: MATIN | C82: =+'PLANNING LIV'!O215 -> NON
A83: 2020-01-15 | B83: APRES MIDI | C83: =+'PLANNING LIV'!M244 -> NON
A84: 2020-01-15 | B84: APRES MIDI | C84: =+'PLANNING LIV'!N244 -> NON
A85: 2020-01-15 | B85: APRES MIDI | C85: ='PLANNING LIV'!O244 -> NON
A86: 2020-01-16 | B86: MATIN | C86: =+'PLANNING LIV'!R215 -> NON
A87: 2020-01-16 | B87: MATIN | C87: =+'PLANNING LIV'!S215 -> NON
A88: 2020-01-16 | B88: MATIN | C88: =+'PLANNING LIV'!T215 -> NON
A89: 2020-01-16 | B89: APRES MIDI | C89: =+'PLANNING LIV'!R244 -> NON
A90: 2020-01-16 | B90: APRES MIDI | C90: =+'PLANNING LIV'!S244 -> NON
A91: 2020-01-16 | B91: APRES MIDI | C91: =+'PLANNING LIV'!T244 -> NON
A92: 2020-01-17 | B92: MATIN | C92: =+'PLANNING LIV'!W215 -> NON
A93: 2020-01-17 | B93: MATIN | C93: =+'PLANNING LIV'!X215 -> NON
A94: 2020-01-17 | B94: MATIN | C94: =+'PLANNING LIV'!Y215 -> NON
A95: 2020-01-17 | B95: APRES MIDI | C95: =+'PLANNING LIV'!W244 -> NON
A96: 2020-01-17 | B96: APRES MIDI | C96: =+'PLANNING LIV'!X244 -> NON
A97: 2020-01-17 | B97: APRES MIDI | C97: =+'PLANNING LIV'!Y244 -> NON
A98: 2020-01-18 | B98: MATIN | C98: =+'PLANNING LIV'!AB215 -> NON
A99: 2020-01-18 | B99: MATIN | C99: =+'PLANNING LIV'!AC215 -> NON
A100: 2020-01-18 | B100: MATIN | C100: =+'PLANNING LIV'!AD215 -> NON
A101: =+A68+7 -> 2020-01-20 | B101: MATIN | C101: =+'PLANNING LIV'!C274 -> NON
A102: =+A101 -> 2020-01-20 | B102: MATIN | C102: =+'PLANNING LIV'!D274 -> NON
A103: =+A102 -> 2020-01-20 | B103: MATIN | C103: =+'PLANNING LIV'!E274 -> NON
A104: 2020-01-20 | B104: APRES MIDI | C104: =+'PLANNING LIV'!C303 -> NON
A105: 2020-01-20 | B105: APRES MIDI | C105: =+'PLANNING LIV'!D303 -> NON
A106: 2020-01-20 | B106: APRES MIDI | C106: =+'PLANNING LIV'!E303 -> NON
A107: =+A101+1 -> 2020-01-21 | B107: MATIN | C107: =+'PLANNING LIV'!H274 -> NON
A108: 2020-01-21 | B108: MATIN | C108: =+'PLANNING LIV'!I274 -> NON
A109: 2020-01-21 | B109: MATIN | C109: =+'PLANNING LIV'!J274 -> NON
A110: 2020-01-21 | B110: APRES MIDI | C110: =+'PLANNING LIV'!H303 -> NON
A111: 2020-01-21 | B111: APRES MIDI | C111: =+'PLANNING LIV'!I303 -> NON
A112: 2020-01-21 | B112: APRES MIDI | C112: =+'PLANNING LIV'!J303 -> NON
A113: 2020-01-22 | B113: MATIN | C113: =+'PLANNING LIV'!M274 -> NON
A114: 2020-01-22 | B114: MATIN | C114: =+'PLANNING LIV'!N274 -> NON
A115: 2020-01-22 | B115: MATIN | C115: =+'PLANNING LIV'!O274 -> NON
A116: 2020-01-22 | B116: APRES MIDI | C116: =+'PLANNING LIV'!M303 -> NON
A117: 2020-01-22 | B117: APRES MIDI | C117: =+'PLANNING LIV'!N303 -> NON
A118: 2020-01-22 | B118: APRES MIDI | C118: =+'PLANNING LIV'!O303 -> NON
A119: 2020-01-23 | B119: MATIN | C119: =+'PLANNING LIV'!R274 -> NON
A120: 2020-01-23 | B120: MATIN | C120: =+'PLANNING LIV'!S274 -> NON
A121: 2020-01-23 | B121: MATIN | C121: =+'PLANNING LIV'!T274 -> NON
A122: 2020-01-23 | B122: APRES MIDI | C122: =+'PLANNING LIV'!R303 -> NON
A123: 2020-01-23 | B123: APRES MIDI | C123: =+'PLANNING LIV'!S303 -> NON
A124: 2020-01-23 | B124: APRES MIDI | C124: =+'PLANNING LIV'!T303 -> NON
A125: 2020-01-24 | B125: MATIN | C125: =+'PLANNING LIV'!W274 -> NON
A126: 2020-01-24 | B126: MATIN | C126: =+'PLANNING LIV'!X274 -> NON
A127: 2020-01-24 | B127: MATIN | C127: =+'PLANNING LIV'!Y274 -> NON
A128: 2020-01-24 | B128: APRES MIDI | C128: =+'PLANNING LIV'!W303 -> NON
A129: 2020-01-24 | B129: APRES MIDI | C129: =+'PLANNING LIV'!X303 -> NON
A130: 2020-01-24 | B130: APRES MIDI | C130: =+'PLANNING LIV'!Y303 -> NON
A131: 2020-01-25 | B131: MATIN | C131: =+'PLANNING LIV'!AB274 -> NON
A132: 2020-01-25 | B132: MATIN | C132: =+'PLANNING LIV'!AC274 -> NON
A133: 2020-01-25 | B133: MATIN | C133: =+'PLANNING LIV'!AD274 -> NON
A134: =+A101+7 -> 2020-01-27 | B134: MATIN | C134: =+'PLANNING LIV'!C333 -> NON
A135: =+A134 -> 2020-01-27 | B135: MATIN | C135: =+'PLANNING LIV'!D333 -> NON
A136: =+A135 -> 2020-01-27 | B136: MATIN | C136: =+'PLANNING LIV'!E333 -> NON
A137: 2020-01-27 | B137: APRES MIDI | C137: =+'PLANNING LIV'!C362 -> NON
A138: 2020-01-27 | B138: APRES MIDI | C138: =+'PLANNING LIV'!D362 -> NON
A139: 2020-01-27 | B139: APRES MIDI | C139: =+'PLANNING LIV'!E362 -> NON
A140: =+A134+1 -> 2020-01-28 | B140: MATIN | C140: =+'PLANNING LIV'!H333 -> NON
A141: 2020-01-28 | B141: MATIN | C141: =+'PLANNING LIV'!I333 -> NON
A142: 2020-01-28 | B142: MATIN | C142: =+'PLANNING LIV'!J333 -> NON
A143: 2020-01-28 | B143: APRES MIDI | C143: =+'PLANNING LIV'!H362 -> NON
A144: 2020-01-28 | B144: APRES MIDI | C144: =+'PLANNING LIV'!I362 -> NON
A145: 2020-01-28 | B145: APRES MIDI | C145: =+'PLANNING LIV'!J362 -> NON
A146: 2020-01-29 | B146: MATIN | C146: =+'PLANNING LIV'!M333 -> NON
A147: 2020-01-29 | B147: MATIN | C147: =+'PLANNING LIV'!N333 -> NON
A148: 2020-01-29 | B148: MATIN | C148: =+'PLANNING LIV'!O333 -> NON
A149: 2020-01-29 | B149: APRES MIDI | C149: =+'PLANNING LIV'!M362 -> NON
A150: 2020-01-29 | B150: APRES MIDI | C150: =+'PLANNING LIV'!N362 -> NON
A151: 2020-01-29 | B151: APRES MIDI | C151: =+'PLANNING LIV'!O362 -> NON
A152: 2020-01-30 | B152: MATIN | C152: =+'PLANNING LIV'!R333 -> NON
A153: 2020-01-30 | B153: MATIN | C153: =+'PLANNING LIV'!S333 -> NON
A154: 2020-01-30 | B154: MATIN | C154: =+'PLANNING LIV'!T333 -> NON
A155: 2020-01-30 | B155: APRES MIDI | C155: =+'PLANNING LIV'!R362 -> NON
A156: 2020-01-30 | B156: APRES MIDI | C156: =+'PLANNING LIV'!S362 -> NON
A157: 2020-01-30 | B157: APRES MIDI | C157: =+'PLANNING LIV'!T362 -> NON
A158: 2020-01-31 | B158: MATIN | C158: =+'PLANNING LIV'!W333 -> NON
A159: 2020-01-31 | B159: MATIN | C159: =+'PLANNING LIV'!X333 -> NON
A160: 2020-01-31 | B160: MATIN | C160: =+'PLANNING LIV'!Y333 -> NON
A161: 2020-01-31 | B161: APRES MIDI | C161: =+'PLANNING LIV'!W362 -> NON
A162: 2020-01-31 | B162: APRES MIDI | C162: =+'PLANNING LIV'!X362 -> NON
A163: 2020-01-31 | B163: APRES MIDI | C163: =+'PLANNING LIV'!Y362 -> NON
A164: 2020-02-01 | B164: MATIN | C164: =+'PLANNING LIV'!AB333 -> NON
A165: 2020-02-01 | B165: MATIN | C165: =+'PLANNING LIV'!AC333 -> NON
A166: 2020-02-01 | B166: MATIN | C166: =+'PLANNING LIV'!AD333 -> NON

Sheet PLANNING LIV
B2: OUTIL CALCUL LIVRAISON | G2: N°: COMMANDE: | H2: commande n°: 999 | I2: PRIX MINI: | J2: TTC
C3: LIBELLE | D3: ZONE CHOIX | E3: ZONE CALCUL | G3: VILLE: | H3: *ville*3 | I3: =+'PLANNING LIV'!O27+('PLANNING LIV'!$R$40*'PLANNING LIV'!L27*24)+(H4*'PLANNING LIV'!$R$40*24) -> 105.6204542 | J3: =+I3*1.196 -> 126.3220632
B4: 1 | C4: CHOIX DU JOUR: | D4: 2019-12-30 | E4: HEURE DE DEPART: | G4: TEMPS DECHARGEMENT ESTIME | H4: 01:00:00 | I4: PRIX MAXI: | J4: TTC
C5: MATIN OU APRES MIDI | D5: MATIN | E5: 08:00:00 | I5: =+'PLANNING LIV'!O29+('PLANNING LIV'!$R$40*'PLANNING LIV'!L29*24)+(H4*'PLANNING LIV'!$R$40*24) -> 117.2081407 | J5: =+I5*1.196 -> 140.1809362
C6: CHOIX DU CHAUFFEUR: | D6: CHAUFFEUR 1 dispo | E6: HEURE DE RETOUR: | G6: VEHICULE CHOISI: | H6: VEHICULE 1 | I6: PRIX MOYEN: | J6: TTC
E7: =ROUNDUP(((+E5+'PLANNING LIV'!L31+H4)*4*24),0)/4/24 -> 10:45:00 | G7: IMMATRICULATION: | H7: =VLOOKUP(H6,'PLANNING LIV'!H25:I35,2,FALSE) -> IMMAT XX 99 | I7: =+'PLANNING LIV'!O31+('PLANNING LIV'!$R$40*'PLANNING LIV'!L31*24)+(H4*'PLANNING LIV'!$R$40*24) -> 111.4142974 | J7: =+I7*1.196 -> 133.2514997
C10: CHOIX DU CHAUFFEUR | D10: TACHE | H10: CHOIX DU TPS DE DECHARGEMENT
C11: CHAUFFEUR 1 | H11: 00:15:00
C12: CHAUFFEUR 2 | D12: TACHE 1 | H12: 00:30:00
C13: CHAUFFEUR 3 | D13: TACHE 2 | H13: 00:45:00
C14: CHAUFFEUR 4 | D14: TACHE 3 | H14: 01:00:00
D15: TACHE 4 | H15: 01:15:00
D16: TACHE 5 | H16: 01:30:00
D17: TACHE 6 | H17: 01:45:00
D18: TACHE 7 | H18: 02:00:00
D19: TACHE 8 | H19: 02:30:00
H20: 03:00:00
C21: MATIN | D21: APRES MIDI | H21: 04:00:00
C24: jour | D24: DATE | G24: N°: | H24: CHOIX DU VEHICULE | I24: IMMAT | K24: CALCUL cout livraison | Q24: CHAUFFEUR | R24: NBR HEURES TRAVAILLEES | S24: RENUMERATION ANNUELLE | T24: NBR D'HEURES A RECUPERER
C25: LUNDI | D25: 2019-12-30 | G25: 1 | H25: VEHICULE 1 | I25: IMMAT XX 99 | L25: tps | M25: KM MOYEN: | N25: vehicule | O25: HT | Q25: CHAUFFEUR 1 JANTON | R25: 1820 | S25: 40000
C26: MARDI | D26: =+D25+1 -> 2019-12-31 | G26: 2 | H26: VEHICULE 2 | I26: IMMAT XX 100 | K26: 1 | L26: CALCUL TEMPS DE LIVRAISON MINI: | M26: CALCUL KM MINI: | N26: VEHICULE: | O26: PRIX MINI: | Q26: CHAUFFEUR 2 PAYAGE | R26: 1820 | S26: 40000
C27: MERCREDI | D27: 2020-01-01 | G27: 3 | H27: VEHICULE 3 | I27: IMMAT XX 101 | L27: =VLOOKUP('PLANNING LIV'!H3,VILLES!C3:K299,8,FALSE) -> 01:28:00 | M27: =VLOOKUP('PLANNING LIV'!H3,VILLES!$C$3:$K$299,4,FALSE) -> 50.4 | N27: ='PLANNING LIV'!H6 -> VEHICULE 1 | O27: =VLOOKUP(N27,'COUT TR 2019'!G4:N15,8,FALSE)*M27 -> 51.408 | Q27: CHAUFFEUR 3THAIRE LANVERS | R27: 1820 | S27: 40000
C28: JEUDI | D28: 2020-01-02 | G28: 4 | H28: VEHICULE 4 | I28: IMMAT XX 102 | L28: CALCUL TEMPS DE LIVRAISON MAXI: | M28: CALCUL KM MAXI: | O28: PRIX MAXI:
C29: VENDREDI | D29: 2020-01-03 | G29: 5 | H29: VEHICULE 5 | I29: IMMAT XX 103 | L29: =VLOOKUP('PLANNING LIV'!H3,VILLES!$C$3:$K$299,9,FALSE) -> 01:45:36 | M29: =VLOOKUP('PLANNING LIV'!H3,VILLES!$C$3:$K$299,5,FALSE) -> 55.44 | O29: =VLOOKUP(N27,'COUT TR 2019'!$G$4:$N$18,8,FALSE)*M29 -> 56.5488
C30: SAMEDI | D30: 2020-01-04 | G30: 6 | H30: VEHICULE 6 | I30: IMMAT XX 104 | L30: TEMPS DE LIVRAISON MOYEN: | M30: KM MOYEN: | O30: PRIX MOYEN: | Q30: MAJORATION | R30: NBR D'HEURE MAJORE | S30: COUT MOYEN HORAIRE ANNUEL | T30: SURCOUT HEURE SUP
C31: DIMANCHE | D31: 2020-01-05 | G31: 7 | H31: VEHICULE 7 | I31: IMMAT XX 105 | L31: =+(L29+L27)/2 -> 01:36:48 | M31: =+(M29+M27)/2 -> 52.92 | O31: =+(O29+O27)/2 -> 53.9784 | R31: =+T25 -> 0 | S31: =+S25/R25 -> 21.97802198 | T31: =+S31*R31 -> 0
C32: LUNDI | D32: 2020-01-06 | G32: 8 | H32: VEHICULE 8 | I32: IMMAT XX 106 | R32: =+T26 -> 0 | S32: =+S26/R26 -> 21.97802198 | T32: =+S32*R32 -> 0
C33: MARDI | D33: 2020-01-07 | G33: 9 | H33: VEHICULE 9 | I33: IMMAT XX 107 | R33: =+T27 -> 0 | S33: =+S27/R27 -> 21.97802198 | T33: =+S33*R33 -> 0
C34: MERCREDI | D34: 2020-01-08 | G34: 10 | H34: VEHICULE 10 | I34: IMMAT XX 108 | S34: =AVERAGE(S31:S33) -> 21.97802198 | T34: =SUM(T31:T33) -> 0
C35: JEUDI | D35: 2020-01-09 | G35: 11 | H35: VEHICULE 11 | I35: IMMAT XX 109
C36: VENDREDI | D36: 2020-01-10 | Q36: COUT TOTAL ANNUEL | R36: COUT HORAIRE TOTAL MOYEN ANNUEL
C37: SAMEDI | D37: 2020-01-11 | Q37: =+T31+S25 -> 40000 | R37: =+Q37/R25 -> 21.97802198
C38: DIMANCHE | D38: 2020-01-12 | Q38: =+T32+S26 -> 40000 | R38: =+Q38/R26 -> 21.97802198
C39: LUNDI | D39: 2020-01-13 | Q39: =+T33+S27 -> 40000 | R39: =+Q39/R27 -> 21.97802198
C40: MARDI | D40: 2020-01-14 | Q40: =SUM(Q37:Q39) -> 120000 | R40: =AVERAGE(R37:R39) -> 21.97802198
C41: MERCREDI | D41: 2020-01-15
C42: JEUDI | D42: 2020-01-16
C43: VENDREDI | D43: 2020-01-17
C44: SAMEDI | D44: 2020-01-18
C45: DIMANCHE | D45: 2020-01-19
C46: LUNDI | D46: 2020-01-20 | L46: DECHARGEMENT
C47: MARDI | D47: 2020-01-21 | L47: TEMPS (% D'HEURE) | M47: 00:15:00 | N47: 00:30:00 | O47: 00:45:00 | P47: 01:00:00 | Q47: 01:15:00 | R47: 01:30:00 | S47: 01:45:00 | T47: 02:00:00 | U47: 02:30:00 | V47: 03:00:00 | W47: 04:00:00
C48: MERCREDI | D48: 2020-01-22 | L48: COUT | M48: =+$R$40*M47*24 -> 5.494505495 | N48: 10.98901099 | O48: 16.48351648 | P48: 21.97802198 | Q48: 27.47252747 | R48: 32.96703297 | S48: 38.46153846 | T48: 43.95604396 | U48: 54.94505495 | V48: 65.93406593 | W48: 87.91208791
C49: JEUDI | D49: 2020-01-23
C50: VENDREDI | D50: 2020-01-24
C51: SAMEDI | D51: 2020-01-25
C52: DIMANCHE | D52: 2020-01-26
C53: LUNDI | D53: 2020-01-27
C54: MARDI | D54: 2020-01-28
C55: MERCREDI | D55: 2020-01-29
C56: JEUDI | D56: 2020-01-30
C57: VENDREDI | D57: 2020-01-31
C58: SAMEDI | D58: 2020-02-01
C59: DIMANCHE | D59: 2020-02-02
C60: LUNDI | D60: 2020-02-03
C61: MARDI | D61: 2020-02-04
C62: MERCREDI | D62: 2020-02-05
C63: JEUDI | D63: 2020-02-06
C64: VENDREDI | D64: 2020-02-07
C65: SAMEDI | D65: 2020-02-08
C66: DIMANCHE | D66: 2020-02-09
C67: LUNDI | D67: 2020-02-10
C68: MARDI | D68: 2020-02-11
C69: MERCREDI | D69: 2020-02-12
C88: CHAUFFEUR | D88: TACHE | H88: CHAUFFEUR | I88: TACHE | M88: CHAUFFEUR | N88: TACHE | R88: CHAUFFEUR | S88: TACHE | W88: CHAUFFEUR | X88: TACHE | AB88: CHAUFFEUR | AC88: TACHE
C89: =+$C$11 -> CHAUFFEUR 1 | D89: TACHE 1 | H89: =+$C$11 -> CHAUFFEUR 1 | M89: =+$C$11 -> CHAUFFEUR 1 | R89: =+$C$11 -> CHAUFFEUR 1 | W89: =+$C$11 -> CHAUFFEUR 1 | AB89: =+$C$11 -> CHAUFFEUR 1
C90: =+$C$12 -> CHAUFFEUR 2 | H90: =+$C$12 -> CHAUFFEUR 2 | M90: =+$C$12 -> CHAUFFEUR 2 | R90: =+$C$12 -> CHAUFFEUR 2 | W90: =+$C$12 -> CHAUFFEUR 2 | AB90: =+$C$12 -> CHAUFFEUR 2
C91: =+$C$13 -> CHAUFFEUR 3 | H91: =+$C$13 -> CHAUFFEUR 3 | M91: =+$C$13 -> CHAUFFEUR 3 | R91: =+$C$13 -> CHAUFFEUR 3 | W91: =+$C$13 -> CHAUFFEUR 3 | AB91: =+$C$13 -> CHAUFFEUR 3
B93: LUNDI MATIN | D93: =+D25 -> 2019-12-30 | G93: MARDI MATIN | I93: =+D93+1 -> 2019-12-31 | L93: MERCREDI MATIN | N93: =+I93+1 -> 2020-01-01 | Q93: JEUDI MATIN | S93: =+N93+1 -> 2020-01-02 | V93: VENDREDI MATIN | X93: =+S93+1 -> 2020-01-03 | AA93: SAMEDI MATIN | AC93: =+X93+1 -> 2020-01-04
C94: =+$C$11 -> CHAUFFEUR 1 | D94: =+$C$12 -> CHAUFFEUR 2 | E94: =+$C$13 -> CHAUFFEUR 3 | H94: =+$C$11 -> CHAUFFEUR 1 | I94: =+$C$12 -> CHAUFFEUR 2 | J94: =+$C$13 -> CHAUFFEUR 3 | M94: =+$C$11 -> CHAUFFEUR 1 | N94: =+$C$12 -> CHAUFFEUR 2 | O94: =+$C$13 -> CHAUFFEUR 3 | R94: =+$C$11 -> CHAUFFEUR 1 | S94: =+$C$12 -> CHAUFFEUR 2 | T94: =+$C$13 -> CHAUFFEUR 3 | W94: =+$C$11 -> CHAUFFEUR 1 | X94: =+$C$12 -> CHAUFFEUR 2 | Y94: =+$C$13 -> CHAUFFEUR 3 | AB94: =+$C$11 -> CHAUFFEUR 1 | AC94: =+$C$12 -> CHAUFFEUR 2 | AD94: =+$C$13 -> CHAUFFEUR 3
B95: TACHE | C95: =+D89 -> TACHE 1 | D95: =+D90 -> 0 | E95: =+D91 -> 0 | G95: TACHE | H95: =+I89 -> 0 | I95: =+I90 -> 0 | J95: =+I91 -> 0 | L95: TACHE | M95: =+N89 -> 0 | N95: =+N90 -> 0 | O95: =+N91 -> 0 | Q95: TACHE | R95: =+S89 -> 0 | S95: =+S90 -> 0 | T95: =+S91 -> 0 | V95: TACHE | W95: =+X89 -> 0 | X95: =+X90 -> 0 | Y95: =+X91 -> 0 | AA95: TACHE | AB95: =+AC89 -> 0 | AC95: =+AC90 -> 0 | AD95: =+AC91 -> 0
B96: DISPO: | C96: =IF(C95="TACHE 1","CHAUFFEUR 1 dispo","NON") -> CHAUFFEUR 1 dispo | D96: =IF(D95="TACHE 1","CHAUFFEUR 2 dispo","NON") -> NON | E96: =IF(E95:E95="TACHE 1","CHAUFFEUR 3 dispo","NON") -> NON | G96: DISPO: | H96: =IF(H95="TACHE 1","CHAUFFEUR 1 dispo","NON") -> NON | I96: =IF(I95="TACHE 1","CHAUFFEUR 2 dispo","NON") -> NON | J96: =IF(J95:J95="TACHE 1","CHAUFFEUR 3 dispo","NON") -> NON | L96: DISPO: | M96: =IF(M95="TACHE 1","CHAUFFEUR 1 dispo","NON") -> NON | N96: =IF(N95="TACHE 1","CHAUFFEUR 2 dispo","NON") -> NON | O96: =IF(O95:O95="TACHE 1","CHAUFFEUR 3 dispo","NON") -> NON | Q96: DISPO: | R96: =IF(R95="TACHE 1","CHAUFFEUR 1 dispo","NON") -> NON | S96: =IF(S95="TACHE 1","CHAUFFEUR 2 dispo","NON") -> NON | T96: =IF(T95:T95="TACHE 1","CHAUFFEUR 3 dispo","NON") -> NON | V96: DISPO: | W96: =IF(W95="TACHE 1","CHAUFFEUR 1 dispo","NON") -> NON | X96: =IF(X95="TACHE 1","CHAUFFEUR 2 dispo","NON") -> NON | Y96: =IF(Y95:Y95="TACHE 1","CHAUFFEUR 3 dispo","NON") -> NON | AA96: DISPO: | AB96: =IF(AB95="TACHE 1","CHAUFFEUR 1 dispo","NON") -> NON | AC96: =IF(AC95="TACHE 1","CHAUFFEUR 2 dispo","NON") -> NON | AD96: =IF(AD95:AD95="TACHE 1","CHAUFFEUR 3 dispo","NON") -> NON
B97: 07:30:00 | G97: 07:30:00 | L97: 07:30:00 | Q97: 07:30:00 | V97: 07:30:00 | AA97: 07:30:00
B98: 07:45:00 | G98: 07:45:00 | L98: 07:45:00 | Q98: 07:45:00 | V98: 07:45:00 | AA98: 07:45:00
B99: 08:00:00 | G99: 08:00:00 | L99: 08:00:00 | Q99: 08:00:00 | V99: 08:00:00 | AA99: 08:00:00
B100: 08:15:00 | G100: 08:15:00 | L100: 08:15:00 | Q100: 08:15:00 | V100: 08:15:00 | AA100: 08:15:00
B101: 08:30:00 | G101: 08:30:00 | L101: 08:30:00 | Q101: 08:30:00 | V101: 08:30:00 | AA101: 08:30:00
B102: 08:45:00 | G102: 08:45:00 | L102: 08:45:00 | Q102: 08:45:00 | V102: 08:45:00 | AA102: 08:45:00
B103: 09:00:00 | G103: 09:00:00 | L103: 09:00:00 | Q103: 09:00:00 | V103: 09:00:00 | AA103: 09:00:00
B104: 09:15:00 | G104: 09:15:00 | L104: 09:15:00 | Q104: 09:15:00 | V104: 09:15:00 | AA104: 09:15:00
B105: 09:30:00 | G105: 09:30:00 | L105: 09:30:00 | Q105: 09:30:00 | V105: 09:30:00 | AA105: 09:30:00
B106: 09:45:00 | G106: 09:45:00 | L106: 09:45:00 | Q106: 09:45:00 | V106: 09:45:00 | AA106: 09:45:00
B107: 10:00:00 | G107: 10:00:00 | L107: 10:00:00 | Q107: 10:00:00 | V107: 10:00:00 | AA107: 10:00:00
B108: 10:15:00 | G108: 10:15:00 | L108: 10:15:00 | Q108: 10:15:00 | V108: 10:15:00 | AA108: 10:15:00
B109: 10:30:00 | G109: 10:30:00 | L109: 10:30:00 | Q109: 10:30:00 | V109: 10:30:00 | AA109: 10:30:00
B110: 10:45:00 | G110: 10:45:00 | L110: 10:45:00 | Q110: 10:45:00 | V110: 10:45:00 | AA110: 10:45:00
B111: 11:00:00 | G111: 11:00:00 | L111: 11:00:00 | Q111: 11:00:00 | V111: 11:00:00 | AA111: 11:00:00
B112: 11:15:00 | G112: 11:15:00 | L112: 11:15:00 | Q112: 11:15:00 | V112: 11:15:00 | AA112: 11:15:00
B113: 11:30:00 | G113: 11:30:00 | L113: 11:30:00 | Q113: 11:30:00 | V113: 11:30:00 | AA113: 11:30:00
B114: 11:45:00 | G114: 11:45:00 | L114: 11:45:00 | Q114: 11:45:00 | V114: 11:45:00 | AA114: 11:45:00
B115: 12:00:00 | G115: 12:00:00 | L115: 12:00:00 | Q115: 12:00:00 | V115: 12:00:00 | AA115: 12:00:00
C117: CHAUFFEUR | D117: TACHE | H117: CHAUFFEUR | I117: TACHE | M117: CHAUFFEUR | N117: TACHE | R117: CHAUFFEUR | S117: TACHE | W117: CHAUFFEUR | X117: TACHE
C118: =+C89 -> CHAUFFEUR 1 | H118: =+H89 -> CHAUFFEUR 1 | M118: =+M89 -> CHAUFFEUR 1 | R118: =+R89 -> CHAUFFEUR 1 | W118: =+W89 -> CHAUFFEUR 1
C119: =+C90 -> CHAUFFEUR 2 | H119: =+H90 -> CHAUFFEUR 2 | M119: =+M90 -> CHAUFFEUR 2 | R119: =+R90 -> CHAUFFEUR 2 | W119: =+W90 -> CHAUFFEUR 2
C120: CHAUFFEUR 3 | H120: CHAUFFEUR 3 | M120: CHAUFFEUR 3 | R120: CHAUFFEUR 3 | W120: CHAUFFEUR 3
B122: LUNDI A-P | D122: =+D93 -> 2019-12-30 | G122: MARDI A-P | I122: =+D122+1 -> 2019-12-31 | L122: MERCREDI A-P | N122: =+I122+1 -> 2020-01-01 | Q122: JEUDI A-P | S122: =+N122+1 -> 2020-01-02 | V122: VENDREDI A-P | X122: =+S122+1 -> 2020-01-03
C123: =+$C$11 -> CHAUFFEUR 1 | D123: =+$C$12 -> CHAUFFEUR 2 | E123: =+$C$13 -> CHAUFFEUR 3 | H123: =+$C$11 -> CHAUFFEUR 1 | I123: =+$C$12 -> CHAUFFEUR 2 | J123: =+$C$13 -> CHAUFFEUR 3 | M123: =+$C$11 -> CHAUFFEUR 1 | N123: =+$C$12 -> CHAUFFEUR 2 | O123: =+$C$13 -> CHAUFFEUR 3 | R123: =+$C$11 -> CHAUFFEUR 1 | S123: =+$C$12 -> CHAUFFEUR 2 | T123: =+$C$13 -> CHAUFFEUR 3 | W123: =+$C$11 -> CHAUFFEUR 1 | X123: =+$C$12 -> CHAUFFEUR 2 | Y123: =+$C$13 -> CHAUFFEUR 3
B124: TACHE | C124: =+D118 -> 0 | D124: =+D119 -> 0 | E124: =+D120 -> 0 | G124: TACHE | H124: =+I118 -> 0 | I124: =+I119 -> 0 | J124: =+I120 -> 0 | L124: TACHE | M124: =+N118 -> 0 | N124: =+N119 -> 0 | O124: =+N120 -> 0 | Q124: TACHE | R124: =+S118 -> 0 | S124: =+S119 -> 0 | T124: =+S120 -> 0 | V124: TACHE | W124: =+X118 -> 0 | X124: =+X119 -> 0 | Y124: =+X120 -> 0
B125: DISPO: | C125: =IF(C124="TACHE 1","CHAUFFEUR 1 dispo","NON") -> NON | D125: =IF(D124="TACHE 1","CHAUFFEUR 2 dispo","NON") -> NON | E125: =IF(E124:E124="TACHE 1","CHAUFFEUR 3 dispo","NON") -> NON | G125: DISPO: | H125: =IF(H124="TACHE 1","CHAUFFEUR 1 dispo","NON") -> NON | I125: =IF(I124="TACHE 1","CHAUFFEUR 2 dispo","NON") -> NON | J125: =IF(J124:J124="TACHE 1","CHAUFFEUR 3 dispo","NON") -> NON | L125: DISPO: | M125: =IF(M124="TACHE 1","CHAUFFEUR 1 dispo","NON") -> NON | N125: =IF(N124="TACHE 1","CHAUFFEUR 2 dispo","NON") -> NON | O125: =IF(O124:O124="TACHE 1","CHAUFFEUR 3 dispo","NON") -> NON | Q125: DISPO: | R125: =IF(R124="TACHE 1","CHAUFFEUR 1 dispo","NON") -> NON | S125: =IF(S124="TACHE 1","CHAUFFEUR 2 dispo","NON") -> NON | T125: =IF(T124:T124="TACHE 1","CHAUFFEUR 3 dispo","NON") -> NON | V125: DISPO: | W125: =IF(W124="TACHE 1","CHAUFFEUR 1 dispo","NON") -> NON | X125: =IF(X124="TACHE 1","CHAUFFEUR 2 dispo","NON") -> NON | Y125: =IF(Y124:Y124="TACHE 1","CHAUFFEUR 3 dispo","NON") -> NON
B126: 13:30:00 | G126: 13:30:00 | L126: 13:30:00 | Q126: 13:30:00 | V126: 13:30:00
B127: 13:45:00 | G127: 13:45:00 | L127: 13:45:00 | Q127: 13:45:00 | V127: 13:45:00
B128: 14:00:00 | G128: 14:00:00 | L128: 14:00:00 | Q128: 14:00:00 | V128: 14:00:00
B129: 14:15:00 | G129: 14:15:00 | L129: 14:15:00 | Q129: 14:15:00 | V129: 14:15:00
B130: 14:30:00 | G130: 14:30:00 | L130: 14:30:00 | Q130: 14:30:00 | V130: 14:30:00
B131: 14:45:00 | G131: 14:45:00 | L131: 14:45:00 | Q131: 14:45:00 | V131: 14:45:00
B132: 15:00:00 | G132: 15:00:00 | L132: 15:00:00 | Q132: 15:00:00 | V132: 15:00:00
B133: 15:15:00 | G133: 15:15:00 | L133: 15:15:00 | Q133: 15:15:00 | V133: 15:15:00
B134: 15:30:00 | G134: 15:30:00 | L134: 15:30:00 | Q134: 15:30:00 | V134: 15:30:00
B135: 15:45:00 | G135: 15:45:00 | L135: 15:45:00 | Q135: 15:45:00 | V135: 15:45:00
B136: 16:00:00 | G136: 16:00:00 | L136: 16:00:00 | Q136: 16:00:00 | V136: 16:00:00
B137: 16:15:00 | G137: 16:15:00 | L137: 16:15:00 | Q137: 16:15:00 | V137: 16:15:00
B138: 16:30:00 | G138: 16:30:00 | L138: 16:30:00 | Q138: 16:30:00 | V138: 16:30:00
B139: 16:45:00 | G139: 16:45:00 | L139: 16:45:00 | Q139: 16:45:00 | V139: 16:45:00
B140: 17:00:00 | G140: 17:00:00 | L140: 17:00:00 | Q140: 17:00:00 | V140: 17:00:00
B141: 17:15:00 | G141: 17:15:00 | L141: 17:15:00 | Q141: 17:15:00 | V141: 17:15:00
B142: 17:30:00 | G142: 17:30:00 | L142: 17:30:00 | Q142: 17:30:00 | V142: 17:30:00
B143: 17:45:00 | G143: 17:45:00 | L143: 17:45:00 | Q143: 17:45:00 | V143: 17:45:00
B144: 18:00:00 | G144: 18:00:00 | L144: 18:00:00 | Q144: 18:00:00 | V144: 18:00:00
C148: CHAUFFEUR | D148: TACHE | H148: CHAUFFEUR | I148: TACHE | M148: CHAUFFEUR | N148: TACHE | R148: CHAUFFEUR | S148: TACHE | W148: CHAUFFEUR | X148: TACHE | AB148: CHAUFFEUR | AC148: TACHE
C149: =+C118 -> CHAUFFEUR 1 | H149: =+H118 -> CHAUFFEUR 1 | M149: =+M118 -> CHAUFFEUR 1 | R149: =+R118 -> CHAUFFEUR 1 | W149: =+W118 -> CHAUFFEUR 1 | AB149: =+AB89 -> CHAUFFEUR 1
C150: =+C119 -> CHAUFFEUR 2 | H150: =+H119 -> CHAUFFEUR 2 | M150: =+M119 -> CHAUFFEUR 2 | R150: =+R119 -> CHAUFFEUR 2 | W150: =+W119 -> CHAUFFEUR 2 | AB150: =+AB90 -> CHAUFFEUR 2
C151: CHAUFFEUR 3 | H151: CHAUFFEUR 3 | M151: CHAUFFEUR 3 | R151: CHAUFFEUR 3 | W151: CHAUFFEUR 3 | AB151: CHAUFFEUR 3
B153: LUNDI MATIN | D153: =+D93+7 -> 2020-01-06 | G153: MARDI MATIN | I153: =+D153+1 -> 2020-01-07 | L153: MERCREDI MATIN | N153: =+I153+1 -> 2020-01-08 | Q153: JEUDI MATIN | S153: =+N153+1 -> 2020-01-09 | V153: VENDREDI MATIN | X153: =+S153+1 -> 2020-01-10 | AA153: SAMEDI MATIN | AC153: =+X153+1 -> 2020-01-11
C154: =+$C$11 -> CHAUFFEUR 1 | D154: =+$C$12 -> CHAUFFEUR 2 | E154: =+$C$13 -> CHAUFFEUR 3 | H154: =+$C$11 -> CHAUFFEUR 1 | I154: =+$C$12 -> CHAUFFEUR 2 | J154: =+$C$13 -> CHAUFFEUR 3 | M154: =+$C$11 -> CHAUFFEUR 1 | N154: =+$C$12 -> CHAUFFEUR 2 | O154: =+$C$13 -> CHAUFFEUR 3 | R154: =+$C$11 -> CHAUFFEUR 1 | S154: =+$C$12 -> CHAUFFEUR 2 | T154: =+$C$13 -> CHAUFFEUR 3 | W154: =+$C$11 -> CHAUFFEUR 1 | X154: =+$C$12 -> CHAUFFEUR 2 | Y154: =+$C$13 -> CHAUFFEUR 3 | AB154: =+$C$11 -> CHAUFFEUR 1 | AC154: =+$C$12 -> CHAUFFEUR 2 | AD154: =+$C$13 -> CHAUFFEUR 3
B155: TACHE | C155: =+D149 -> 0 | D155: =+D150 -> 0 | E155: =+D151 -> 0 | G155: TACHE | H155: =+I149 -> 0 | I155: =+I150 -> 0 | J155: =+I151 -> 0 | L155: TACHE | M155: =+N149 -> 0 | N155: =+N150 -> 0 | O155: =+N151 -> 0 | Q155: TACHE | R155: =+S149 -> 0 | S155: =+S150 -> 0 | T155: =+S151 -> 0 | V155: TACHE | W155: =+X149 -> 0 | X155: =+X150 -> 0 | Y155: =+X151 -> 0 | AA155: TACHE | AB155: =+AC149 -> 0 | AC155: =+AC150 -> 0 | AD155: =+AC151 -> 0
B156: DISPO: | C156: =IF(C155="TACHE 1","CHAUFFEUR 1 dispo","NON") -> NON | D156: =IF(D155="TACHE 1","CHAUFFEUR 2 dispo","NON") -> NON | E156: =IF(E155:E155="TACHE 1","CHAUFFEUR 3 dispo","NON") -> NON | G156: DISPO: | H156: =IF(H155="TACHE 1","CHAUFFEUR 1 dispo","NON") -> NON | I156: =IF(I155="TACHE 1","CHAUFFEUR 2 dispo","NON") -> NON | J156: =IF(J155:J155="TACHE 1","CHAUFFEUR 3 dispo","NON") -> NON | L156: DISPO: | M156: =IF(M155="TACHE 1","CHAUFFEUR 1 dispo","NON") -> NON | N156: =IF(N155="TACHE 1","CHAUFFEUR 2 dispo","NON") -> NON | O156: =IF(O155:O155="TACHE 1","CHAUFFEUR 3 dispo","NON") -> NON | Q156: DISPO: | R156: =IF(R155="TACHE 1","CHAUFFEUR 1 dispo","NON") -> NON | S156: =IF(S155="TACHE 1","CHAUFFEUR 2 dispo","NON") -> NON | T156: =IF(T155:T155="TACHE 1","CHAUFFEUR 3 dispo","NON") -> NON | V156: DISPO: | W156: =IF(W155="TACHE 1","CHAUFFEUR 1 dispo","NON") -> NON | X156: =IF(X155="TACHE 1","CHAUFFEUR 2 dispo","NON") -> NON | Y156: =IF(Y155:Y155="TACHE 1","CHAUFFEUR 3 dispo","NON") -> NON | AA156: DISPO: | AB156: =IF(AB155="TACHE 1","CHAUFFEUR 1 dispo","NON") -> NON | AC156: =IF(AC155="TACHE 1","CHAUFFEUR 2 dispo","NON") -> NON | AD156: =IF(AD155:AD155="TACHE 1","CHAUFFEUR 3 dispo","NON") -> NON
B157: 07:30:00 | G157: 07:30:00 | L157: 07:30:00 | Q157: 07:30:00 | V157: 07:30:00 | AA157: 07:30:00
B158: 07:45:00 | G158: 07:45:00 | L158: 07:45:00 | Q158: 07:45:00 | V158: 07:45:00 | AA158: 07:45:00
B159: 08:00:00 | G159: 08:00:00 | L159: 08:00:00 | Q159: 08:00:00 | V159: 08:00:00 | AA159: 08:00:00
B160: 08:15:00 | G160: 08:15:00 | L160: 08:15:00 | Q160: 08:15:00 | V160: 08:15:00 | AA160: 08:15:00
B161: 08:30:00 | G161: 08:30:00 | L161: 08:30:00 | Q161: 08:30:00 | V161: 08:30:00 | AA161: 08:30:00
B162: 08:45:00 | G162: 08:45:00 | L162: 08:45:00 | Q162: 08:45:00 | V162: 08:45:00 | AA162: 08:45:00
B163: 09:00:00 | G163: 09:00:00 | L163: 09:00:00 | Q163: 09:00:00 | V163: 09:00:00 | AA163: 09:00:00
B164: 09:15:00 | G164: 09:15:00 | L164: 09:15:00 | Q164: 09:15:00 | V164: 09:15:00 | AA164: 09:15:00
B165: 09:30:00 | G165: 09:30:00 | L165: 09:30:00 | Q165: 09:30:00 | V165: 09:30:00 | AA165: 09:30:00
B166: 09:45:00 | G166: 09:45:00 | L166: 09:45:00 | Q166: 09:45:00 | V166: 09:45:00 | AA166: 09:45:00
B167: 10:00:00 | G167: 10:00:00 | L167: 10:00:00 | Q167: 10:00:00 | V167: 10:00:00 | AA167: 10:00:00
B168: 10:15:00 | G168: 10:15:00 | L168: 10:15:00 | Q168: 10:15:00 | V168: 10:15:00 | AA168: 10:15:00
B169: 10:30:00 | G169: 10:30:00 | L169: 10:30:00 | Q169: 10:30:00 | V169: 10:30:00 | AA169: 10:30:00
B170: 10:45:00 | G170: 10:45:00 | L170: 10:45:00 | Q170: 10:45:00 | V170: 10:45:00 | AA170: 10:45:00
B171: 11:00:00 | G171: 11:00:00 | L171: 11:00:00 | Q171: 11:00:00 | V171: 11:00:00 | AA171: 11:00:00
B172: 11:15:00 | G172: 11:15:00 | L172: 11:15:00 | Q172: 11:15:00 | V172: 11:15:00 | AA172: 11:15:00
B173: 11:30:00 | G173: 11:30:00 | L173: 11:30:00 | Q173: 11:30:00 | V173: 11:30:00 | AA173: 11:30:00
B174: 11:45:00 | G174: 11:45:00 | L174: 11:45:00 | Q174: 11:45:00 | V174: 11:45:00 | AA174: 11:45:00
B175: 12:00:00 | G175: 12:00:00 | L175: 12:00:00 | Q175: 12:00:00 | V175: 12:00:00 | AA175: 12:00:00
C177: CHAUFFEUR | D177: TACHE | H177: CHAUFFEUR | I177: TACHE | M177: CHAUFFEUR | N177: TACHE | R177: CHAUFFEUR | S177: TACHE | W177: CHAUFFEUR | X177: TACHE
C178: =+C149 -> CHAUFFEUR 1 | H178: =+H149 -> CHAUFFEUR 1 | M178: =+M149 -> CHAUFFEUR 1 | R178: =+R149 -> CHAUFFEUR 1 | W178: =+W149 -> CHAUFFEUR 1
C179: =+C150 -> CHAUFFEUR 2 | H179: =+H150 -> CHAUFFEUR 2 | M179: =+M150 -> CHAUFFEUR 2 | R179: =+R150 -> CHAUFFEUR 2 | W179: =+W150 -> CHAUFFEUR 2
C180: CHAUFFEUR 3 | H180: CHAUFFEUR 3 | M180: CHAUFFEUR 3 | R180: CHAUFFEUR 3 | W180: CHAUFFEUR 3
B182: LUNDI A-P | D182: =+D153 -> 2020-01-06 | G182: MARDI A-P | I182: =+D182+1 -> 2020-01-07 | L182: MERCREDI A-P | N182: =+I182+1 -> 2020-01-08 | Q182: JEUDI A-P | S182: =+N182+1 -> 2020-01-09 | V182: VENDREDI A-P | X182: =+S182+1 -> 2020-01-10
C183: =+$C$11 -> CHAUFFEUR 1 | D183: =+$C$12 -> CHAUFFEUR 2 | E183: =+$C$13 -> CHAUFFEUR 3 | H183: =+$C$11 -> CHAUFFEUR 1 | I183: =+$C$12 -> CHAUFFEUR 2 | J183: =+$C$13 -> CHAUFFEUR 3 | M183: =+$C$11 -> CHAUFFEUR 1 | N183: =+$C$12 -> CHAUFFEUR 2 | O183: =+$C$13 -> CHAUFFEUR 3 | R183: =+$C$11 -> CHAUFFEUR 1 | S183: =+$C$12 -> CHAUFFEUR 2 | T183: =+$C$13 -> CHAUFFEUR 3 | W183: =+$C$11 -> CHAUFFEUR 1 | X183: =+$C$12 -> CHAUFFEUR 2 | Y183: =+$C$13 -> CHAUFFEUR 3
B184: TACHE | C184: =+D178 -> 0 | D184: =+D179 -> 0 | E184: =+D180 -> 0 | G184: TACHE | H184: =+I178 -> 0 | I184: =+I179 -> 0 | J184: =+I180 -> 0 | L184: TACHE | M184: =+N178 -> 0 | N184: =+N179 -> 0 | O184: =+N180 -> 0 | Q184: TACHE | R184: =+S178 -> 0 | S184: =+S179 -> 0 | T184: =+S180 -> 0 | V184: TACHE | W184: =+X178 -> 0 | X184: =+X179 -> 0 | Y184: =+X180 -> 0
B185: DISPO: | C185: =IF(C184="TACHE 1","CHAUFFEUR 1 dispo","NON") -> NON | D185: =IF(D184="TACHE 1","CHAUFFEUR 2 dispo","NON") -> NON | E185: =IF(E184:E184="TACHE 1","CHAUFFEUR 3 dispo","NON") -> NON | G185: DISPO: | H185: =IF(H184="TACHE 1","CHAUFFEUR 1 dispo","NON") -> NON | I185: =IF(I184="TACHE 1","CHAUFFEUR 2 dispo","NON") -> NON | J185: =IF(J184:J184="TACHE 1","CHAUFFEUR 3 dispo","NON") -> NON | L185: DISPO: | M185: =IF(M184="TACHE 1","CHAUFFEUR 1 dispo","NON") -> NON | N185: =IF(N184="TACHE 1","CHAUFFEUR 2 dispo","NON") -> NON | O185: =IF(O184:O184="TACHE 1","CHAUFFEUR 3 dispo","NON") -> NON | Q185: DISPO: | R185: =IF(R184="TACHE 1","CHAUFFEUR 1 dispo","NON") -> NON | S185: =IF(S184="TACHE 1","CHAUFFEUR 2 dispo","NON") -> NON | T185: =IF(T184:T184="TACHE 1","CHAUFFEUR 3 dispo","NON") -> NON | V185: DISPO: | W185: =IF(W184="TACHE 1","CHAUFFEUR 1 dispo","NON") -> NON | X185: =IF(X184="TACHE 1","CHAUFFEUR 2 dispo","NON") -> NON | Y185: =IF(Y184:Y184="TACHE 1","CHAUFFEUR 3 dispo","NON") -> NON
B186: 13:30:00 | G186: 13:30:00 | L186: 13:30:00 | Q186: 13:30:00 | V186: 13:30:00
B187: 13:45:00 | G187: 13:45:00 | L187: 13:45:00 | Q187: 13:45:00 | V187: 13:45:00
B188: 14:00:00 | G188: 14:00:00 | L188: 14:00:00 | Q188: 14:00:00 | V188: 14:00:00
B189: 14:15:00 | G189: 14:15:00 | L189: 14:15:00 | Q189: 14:15:00 | V189: 14:15:00
B190: 14:30:00 | G190: 14:30:00 | L190: 14:30:00 | Q190: 14:30:00 | V190: 14:30:00
B191: 14:45:00 | G191: 14:45:00 | L191: 14:45:00 | Q191: 14:45:00 | V191: 14:45:00
B192: 15:00:00 | G192: 15:00:00 | L192: 15:00:00 | Q192: 15:00:00 | V192: 15:00:00
B193: 15:15:00 | G193: 15:15:00 | L193: 15:15:00 | Q193: 15:15:00 | V193: 15:15:00
B194: 15:30:00 | G194: 15:30:00 | L194: 15:30:00 | Q194: 15:30:00 | V194: 15:30:00
B195: 15:45:00 | G195: 15:45:00 | L195: 15:45:00 | Q195: 15:45:00 | V195: 15:45:00
B196: 16:00:00 | G196: 16:00:00 | L196: 16:00:00 | Q196: 16:00:00 | V196: 16:00:00
B197: 16:15:00 | G197: 16:15:00 | L197: 16:15:00 | Q197: 16:15:00 | V197: 16:15:00
B198: 16:30:00 | G198: 16:30:00 | L198: 16:30:00 | Q198: 16:30:00 | V198: 16:30:00
B199: 16:45:00 | G199: 16:45:00 | L199: 16:45:00 | Q199: 16:45:00 | V199: 16:45:00
B200: 17:00:00 | G200: 17:00:00 | L200: 17:00:00 | Q200: 17:00:00 | V200: 17:00:00
B201: 17:15:00 | G201: 17:15:00 | L201: 17:15:00 | Q201: 17:15:00 | V201: 17:15:00
B202: 17:30:00 | G202: 17:30:00 | L202: 17:30:00 | Q202: 17:30:00 | V202: 17:30:00
B203: 17:45:00 | G203: 17:45:00 | L203: 17:45:00 | Q203: 17:45:00 | V203: 17:45:00
B204: 18:00:00 | G204: 18:00:00 | L204: 18:00:00 | Q204: 18:00:00 | V204: 18:00:00
C207: CHAUFFEUR | D207: TACHE | H207: CHAUFFEUR | I207: TACHE | M207: CHAUFFEUR | N207: TACHE | R207: CHAUFFEUR | S207: TACHE | W207: CHAUFFEUR | X207: TACHE | AB207: CHAUFFEUR | AC207: TACHE
C208: =+C178 -> CHAUFFEUR 1 | H208: =+H178 -> CHAUFFEUR 1 | M208: =+M178 -> CHAUFFEUR 1 | R208: =+R178 -> CHAUFFEUR 1 | W208: =+W178 -> CHAUFFEUR 1 | AB208: =+AB149 -> CHAUFFEUR 1
C209: =+C179 -> CHAUFFEUR 2 | H209: =+H179 -> CHAUFFEUR 2 | M209: =+M179 -> CHAUFFEUR 2 | R209: =+R179 -> CHAUFFEUR 2 | W209: =+W179 -> CHAUFFEUR 2 | AB209: =+AB150 -> CHAUFFEUR 2
C210: =+C180 -> CHAUFFEUR 3 | H210: =+H180 -> CHAUFFEUR 3 | M210: =+M180 -> CHAUFFEUR 3 | R210: =+R180 -> CHAUFFEUR 3 | W210: =+W180 -> CHAUFFEUR 3 | AB210: CHAUFFEUR 3
B212: LUNDI MATIN | D212: =+D153+7 -> 2020-01-13 | G212: MARDI MATIN | I212: =+D212+1 -> 2020-01-14 | L212: MERCREDI MATIN | N212: =+I212+1 -> 2020-01-15 | Q212: JEUDI MATIN | S212: =+N212+1 -> 2020-01-16 | V212: VENDREDI MATIN | X212: =+S212+1 -> 2020-01-17 | AA212: SAMEDI MATIN | AC212: =+X212+1 -> 2020-01-18
C213: =+$C$11 -> CHAUFFEUR 1 | D213: =+$C$12 -> CHAUFFEUR 2 | E213: =+$C$13 -> CHAUFFEUR 3 | H213: =+$C$11 -> CHAUFFEUR 1 | I213: =+$C$12 -> CHAUFFEUR 2 | J213: =+$C$13 -> CHAUFFEUR 3 | M213: =+$C$11 -> CHAUFFEUR 1 | N213: =+$C$12 -> CHAUFFEUR 2 | O213: =+$C$13 -> CHAUFFEUR 3 | R213: =+$C$11 -> CHAUFFEUR 1 | S213: =+$C$12 -> CHAUFFEUR 2 | T213: =+$C$13 -> CHAUFFEUR 3 | W213: =+$C$11 -> CHAUFFEUR 1 | X213: =+$C$12 -> CHAUFFEUR 2 | Y213: =+$C$13 -> CHAUFFEUR 3 | AB213: =+$C$11 -> CHAUFFEUR 1 | AC213: =+$C$12 -> CHAUFFEUR 2 | AD213: =+$C$13 -> CHAUFFEUR 3
B214: TACHE | C214: =+D208 -> 0 | D214: =+D209 -> 0 | E214: =+D210 -> 0 | G214: TACHE | H214: =+I208 -> 0 | I214: =+I209 -> 0 | J214: =+I210 -> 0 | L214: TACHE | M214: =+N208 -> 0 | N214: =+N209 -> 0 | O214: =+N210 -> 0 | Q214: TACHE | R214: =+S208 -> 0 | S214: =+S209 -> 0 | T214: =+S210 -> 0 | V214: TACHE | W214: =+X208 -> 0 | X214: =+X209 -> 0 | Y214: =+X210 -> 0 | AA214: TACHE | AB214: =+AC208 -> 0 | AC214: =+AC209 -> 0 | AD214: =+AC210 -> 0
B215: DISPO: | C215: =IF(C214="TACHE 1","CHAUFFEUR 1 dispo","NON") -> NON | D215: =IF(D214="TACHE 1","CHAUFFEUR 2 dispo","NON") -> NON | E215: =IF(E214:E214="TACHE 1","CHAUFFEUR 3 dispo","NON") -> NON | G215: DISPO: | H215: =IF(H214="TACHE 1","CHAUFFEUR 1 dispo","NON") -> NON | I215: =IF(I214="TACHE 1","CHAUFFEUR 2 dispo","NON") -> NON | J215: =IF(J214:J214="TACHE 1","CHAUFFEUR 3 dispo","NON") -> NON | L215: DISPO: | M215: =IF(M214="TACHE 1","CHAUFFEUR 1 dispo","NON") -> NON | N215: =IF(N214="TACHE 1","CHAUFFEUR 2 dispo","NON") -> NON | O215: =IF(O214:O214="TACHE 1","CHAUFFEUR 3 dispo","NON") -> NON | Q215: DISPO: | R215: =IF(R214="TACHE 1","CHAUFFEUR 1 dispo","NON") -> NON | S215: =IF(S214="TACHE 1","CHAUFFEUR 2 dispo","NON") -> NON | T215: =IF(T214:T214="TACHE 1","CHAUFFEUR 3 dispo","NON") -> NON | V215: DISPO: | W215: =IF(W214="TACHE 1","CHAUFFEUR 1 dispo","NON") -> NON | X215: =IF(X214="TACHE 1","CHAUFFEUR 2 dispo","NON") -> NON | Y215: =IF(Y214:Y214="TACHE 1","CHAUFFEUR 3 dispo","NON") -> NON | AA215: DISPO: | AB215: =IF(AB214="TACHE 1","CHAUFFEUR 1 dispo","NON") -> NON | AC215: =IF(AC214="TACHE 1","CHAUFFEUR 2 dispo","NON") -> NON | AD215: =IF(AD214:AD214="TACHE 1","CHAUFFEUR 3 dispo","NON") -> NON
B216: 07:30:00 | G216: 07:30:00 | L216: 07:30:00 | Q216: 07:30:00 | V216: 07:30:00 | AA216: 07:30:00
B217: 07:45:00 | G217: 07:45:00 | L217: 07:45:00 | Q217: 07:45:00 | V217: 07:45:00 | AA217: 07:45:00
B218: 08:00:00 | G218: 08:00:00 | L218: 08:00:00 | Q218: 08:00:00 | V218: 08:00:00 | AA218: 08:00:00
B219: 08:15:00 | G219: 08:15:00 | L219: 08:15:00 | Q219: 08:15:00 | V219: 08:15:00 | AA219: 08:15:00
B220: 08:30:00 | G220: 08:30:00 | L220: 08:30:00 | Q220: 08:30:00 | V220: 08:30:00 | AA220: 08:30:00
B221: 08:45:00 | G221: 08:45:00 | L221: 08:45:00 | Q221: 08:45:00 | V221: 08:45:00 | AA221: 08:45:00
B222: 09:00:00 | G222: 09:00:00 | L222: 09:00:00 | Q222: 09:00:00 | V222: 09:00:00 | AA222: 09:00:00
B223: 09:15:00 | G223: 09:15:00 | L223: 09:15:00 | Q223: 09:15:00 | V223: 09:15:00 | AA223: 09:15:00
B224: 09:30:00 | G224: 09:30:00 | L224: 09:30:00 | Q224: 09:30:00 | V224: 09:30:00 | AA224: 09:30:00
B225: 09:45:00 | G225: 09:45:00 | L225: 09:45:00 | Q225: 09:45:00 | V225: 09:45:00 | AA225: 09:45:00
B226: 10:00:00 | G226: 10:00:00 | L226: 10:00:00 | Q226: 10:00:00 | V226: 10:00:00 | AA226: 10:00:00
B227: 10:15:00 | G227: 10:15:00 | L227: 10:15:00 | Q227: 10:15:00 | V227: 10:15:00 | AA227: 10:15:00
B228: 10:30:00 | G228: 10:30:00 | L228: 10:30:00 | Q228: 10:30:00 | V228: 10:30:00 | AA228: 10:30:00
B229: 10:45:00 | G229: 10:45:00 | L229: 10:45:00 | Q229: 10:45:00 | V229: 10:45:00 | AA229: 10:45:00
B230: 11:00:00 | G230: 11:00:00 | L230: 11:00:00 | Q230: 11:00:00 | V230: 11:00:00 | AA230: 11:00:00
B231: 11:15:00 | G231: 11:15:00 | L231: 11:15:00 | Q231: 11:15:00 | V231: 11:15:00 | AA231: 11:15:00
B232: 11:30:00 | G232: 11:30:00 | L232: 11:30:00 | Q232: 11:30:00 | V232: 11:30:00 | AA232: 11:30:00
B233: 11:45:00 | G233: 11:45:00 | L233: 11:45:00 | Q233: 11:45:00 | V233: 11:45:00 | AA233: 11:45:00
B234: 12:00:00 | G234: 12:00:00 | L234: 12:00:00 | Q234: 12:00:00 | V234: 12:00:00 | AA234: 12:00:00
C236: CHAUFFEUR | D236: TACHE | H236: CHAUFFEUR | I236: TACHE | M236: CHAUFFEUR | N236: TACHE | R236: CHAUFFEUR | S236: TACHE | W236: CHAUFFEUR | X236: TACHE
... 134 more rows
